NUMERO_MANDATO;RIGA_MANDATO;QUIET;IMPORTO_RIGA;IMPORTO_MANDATO;BENEFICIARIO;CIG;TITOLO_PAGAMENTO;DATA_MANDATO;CAPITOLO;ARTICOLO;NUMERO_IMPEGNO;TITOLO;DESCR_TITOLO;LIVELLO_II;DESCR_LIVELLO_II;LIVELLO_III;DESCR_LIVELLO_III;LIVELLO_IV;DESCR_LIVELLO_IV;LIVELLO_V;DESCR_LIVELLO_V;DATA_PAG_EFF;
18;1;0;"200,00";"200,00";GRUPPO PROTEZIONE CIVILE DI COGOLLO; ;"CONTRIBUTO A FAVORE DELL'ASSOCIAZIONE DI VOLONTARIATO - GRUPPO ANTINCENDIO E PROTEZIONE CIVILE DI COGOLLO DEL CENGIO, IMPEGNATO NELLASSISTENZA DEL PERSONALE DELLUNIVERSITA' DI BOLOGNA DURANTE LA CAMPAGNA DI MISURAZIONE DELLA FRANA DEL BRUSTOLE'.";06-02-2017;14111;0;113;1;Spese correnti;4;Trasferimenti correnti;4;Trasferimenti correnti a Istituzioni Sociali Private;1;Trasferimenti correnti a Istituzioni Sociali Private;1;Trasferimenti correnti a Istituzioni Sociali Private;06-02-2017;
19;1;0;"39.711,20";"60.692,80";COMUNE DI COGOLLO DEL CENGIO; ;"POR FESR 2007 - 2013. ASSE 4, LINEA DI INTERVENTO 4.3. AZIONE 4.3.1 CICLOPISTA DELL'ASTICO, TESINA E BACCHIGLIONE. TRATTA VELO D'ASTICO - LASTEBASSE. DECRETO REGIONALE RIPARTO MAGGIORI SOMME LIQUIDATE. DELIBERAZIONE DI GIUNTA N. 76 DEL 28.12.2016. IM";06-02-2017;24117;0;115;2;Spese in conto capitale;5;Altre spese in conto capitale;99;Altre spese in conto capitale n.a.c.;99;Altre spese in conto capitale n.a.c.;999;Altre spese in conto capitale n.a.c.;06-02-2017;
19;2;0;"20.981,60";"60.692,80";COMUNE DI VELO D'ASTICO; ;"POR FESR 2007 - 2013. ASSE 4, LINEA DI INTERVENTO 4.3. AZIONE 4.3.1 CICLOPISTA DELL'ASTICO, TESINA E BACCHIGLIONE. TRATTA VELO D'ASTICO - LASTEBASSE. DECRETO REGIONALE RIPARTO MAGGIORI SOMME LIQUIDATE. DELIBERAZIONE DI GIUNTA N. 76 DEL 28.12.2016. IM";06-02-2017;24117;0;115;2;Spese in conto capitale;5;Altre spese in conto capitale;99;Altre spese in conto capitale n.a.c.;99;Altre spese in conto capitale n.a.c.;999;Altre spese in conto capitale n.a.c.;06-02-2017;
20;1;0;"2.428,45";"2.428,45";LA LOCOMOTIVA COOPERATIVA SOCIALE ONLUS;6257521DAC;SALDO Fatt.n. P/336  del 30/12/2016 SERVIZIO CONSEGNA PASTI MESE DI NOVEMBRE ANNO 2016.;08-02-2017;15125;0;10;1;Spese correnti;3;Acquisto di beni e servizi;2;Acquisto di servizi;14;Servizi di ristorazione;999;Altri servizi di ristorazione;08-02-2017;
21;1;0;"1.420,65";"3.626,70";LA LOCOMOTIVA COOPERATIVA SOCIALE ONLUS;6257521DAC;SALDO Fatt.n. P/9  del 10/01/2017 GESTIONE PARTE DEL SERVIZIO DEL SEGRETARIATO SOCIALE MESE DI DICEMBRE ANNO 2016.;08-02-2017;15119;0;105;1;Spese correnti;3;Acquisto di beni e servizi;2;Acquisto di servizi;18;Servizi sanitari;999;Altri acquisti di servizi sanitari n.a.c.;08-02-2017;
21;2;0;"2.206,05";"3.626,70";LA LOCOMOTIVA COOPERATIVA SOCIALE ONLUS;6257521DAC;SALDO Fatt.n. P/330  del 13/12/2016 GESTIONE PARTE SERVIZIO SEGRETARIATO SOCIALE MESE DI NOVEMBRE ANNO 2016.;08-02-2017;15119;0;105;1;Spese correnti;3;Acquisto di beni e servizi;2;Acquisto di servizi;18;Servizi sanitari;999;Altri acquisti di servizi sanitari n.a.c.;08-02-2017;
22;1;0;"1.377,14";"2.855,54";LA LOCOMOTIVA COOPERATIVA SOCIALE ONLUS;04420864E7;SALDO Fatt.n. P/331  del 13/12/2016 GESTIONE SERVIZIO IMPIEGATIZIO MESE DI NOVEMBRE ANNO 2016.;08-02-2017;15119;0;105;1;Spese correnti;3;Acquisto di beni e servizi;2;Acquisto di servizi;18;Servizi sanitari;999;Altri acquisti di servizi sanitari n.a.c.;08-02-2017;
22;2;0;"1.478,40";"2.855,54";LA LOCOMOTIVA COOPERATIVA SOCIALE ONLUS;04420864E7;SALDO Fatt.n. P/11  del 10/01/2017 GESTIONE SERVIZIO IMPIEGATIZIO DI SEGRETERIA - MESE DI DICEMBRE ANNO 2016.;08-02-2017;15119;0;105;1;Spese correnti;3;Acquisto di beni e servizi;2;Acquisto di servizi;18;Servizi sanitari;999;Altri acquisti di servizi sanitari n.a.c.;08-02-2017;
23;1;0;"1.611,42";"3.312,36";COMUNE DI ARSIERO; ;SALDO Fatt.n. 44/B/3  del 30/11/2016 FORNITURA PASTI CALDI PER PERSONE ANZIANE MESE NOVEMBRE 2016;08-02-2017;15125;0;10;1;Spese correnti;3;Acquisto di beni e servizi;2;Acquisto di servizi;14;Servizi di ristorazione;999;Altri servizi di ristorazione;08-02-2017;
23;2;0;"1.700,94";"3.312,36";COMUNE DI ARSIERO; ;SALDO Fatt.n. 48/B/3  del 30/12/2016 FORNITURA PASTI CALDI ANZIANI MESE DI DICEMBRE 2016;08-02-2017;15125;0;10;1;Spese correnti;3;Acquisto di beni e servizi;2;Acquisto di servizi;14;Servizi di ristorazione;999;Altri servizi di ristorazione;08-02-2017;
25;1;0;"3,27";"577,06";Soenergy S.r.l.;ZE91780D56;ACCONTO Fatt.n. 161194487  del 07/12/2016 FORNITURA GAS;08-02-2017;11205;0;34;1;Spese correnti;3;Acquisto di beni e servizi;2;Acquisto di servizi;5;Utenze e canoni;6;Gas;08-02-2017;
25;2;0;"573,79";"577,06";Soenergy S.r.l.;ZE91780D56;ACCONTO Fatt.n. 161194487  del 07/12/2016 FORNITURA GAS;08-02-2017;11205;0;34;1;Spese correnti;3;Acquisto di beni e servizi;2;Acquisto di servizi;5;Utenze e canoni;6;Gas;08-02-2017;
26;1;0;"76,13";"76,13";ENI ADFIN S.P.A.;Z8819C2A81;SALDO Fatt.n. 29926570  del 31/10/2016 CARBURANTI MESE DI OTTOBRE ANNO 2016.;08-02-2017;11265;0;38;1;Spese correnti;3;Acquisto di beni e servizi;1;Acquisto di beni;2;Altri beni di consumo;2;"Carburanti, combustibili e lubrificanti";08-02-2017;
27;1;0;"17,01";"126,20";ENI ADFIN S.P.A.;Z8819C2A81;SPESE FUNZIONAMENTO E MANUTENZIONE AUTOMEZZI SERVIZI ASSOCIATI.IMPEGNO DI SPESA ANNO 2016.;08-02-2017;11265;0;38;1;Spese correnti;3;Acquisto di beni e servizi;1;Acquisto di beni;2;Altri beni di consumo;2;"Carburanti, combustibili e lubrificanti";08-02-2017;
27;2;0;"109,19";"126,20";ENI ADFIN S.P.A.;Z8819C2A81;SALDO Fatt.n. 29828773  del 30/09/2016 CARBURANTI SETTEMBRE 2016.;08-02-2017;11265;0;38;1;Spese correnti;3;Acquisto di beni e servizi;1;Acquisto di beni;2;Altri beni di consumo;2;"Carburanti, combustibili e lubrificanti";08-02-2017;
29;1;0;"551,11";"551,11";REGIONE DEL VENETO - SERVIZIO TESORERIA; ;L.R. 52/78 ART. 25 E 26 PROGRAMMA ANNO 2009 - RESTITUZIONE ECONOMIE DI SPESA.;08-02-2017;26101;0;123;2;Spese in conto capitale;3;Contributi agli investimenti;1;Contributi agli investimenti a Amministrazioni pubbliche;2;Contributi agli investimenti a Amministrazioni Locali;3;Contributi agli investimenti a Comuni;08-02-2017;
30;1;0;"17,56";"17,56";REGIONE DEL VENETO - SERVIZIO TESORERIA;ZBC1B448CE;L.R. 2/1994 ART. 20 21 22  - ESERCIZIO FINANZIARIO 2010 - RESTITUZIONE ECONOMIE DI SPESA.;08-02-2017;26101;0;123;2;Spese in conto capitale;3;Contributi agli investimenti;1;Contributi agli investimenti a Amministrazioni pubbliche;2;Contributi agli investimenti a Amministrazioni Locali;3;Contributi agli investimenti a Comuni;08-02-2017;
31;1;0;"880,00";"880,00";CASA DI RIPOSO "A.ROSSI"; ;SALDO Fatt.n. 53/E  del 13/12/2016 CONVENZIONE SERVIZIO PRIMO SOCCORSO 02/07/2016 - 04/09/2016 - CRI - SERVOS.;08-02-2017;15121;0;47;1;Spese correnti;3;Acquisto di beni e servizi;2;Acquisto di servizi;18;Servizi sanitari;999;Altri acquisti di servizi sanitari n.a.c.;08-02-2017;
34;1;0;"5.856,00";"5.856,00";BOXXAPPS SRL;ZBC1B448CE;"SALDO Fatt.n. 1/160345  del 12/12/2016 CONVENZIONE X-LONG, X-SERVER, X.COR PER L'ANNO 2016.";09-02-2017;11245;0;75;1;Spese correnti;3;Acquisto di beni e servizi;2;Acquisto di servizi;13;Servizi ausiliari per il funzionamento dell'ente;999;Altri servizi ausiliari n.a.c.;09-02-2017;
35;1;0;"170,80";"170,80";REGIONE DEL VENETO GIUNTA REGIONALE; ;ACCONTO Fatt.n. 1186  del 30/12/2016 (COD. INT. 336075-336077) BUR N.128 DEL 30/12/2016: ESTRATTO DECRETI - Fattura Nr. 1186/2016;09-02-2017;26150;0;135;2;Spese in conto capitale;5;Altre spese in conto capitale;99;Altre spese in conto capitale n.a.c.;99;Altre spese in conto capitale n.a.c.;999;Altre spese in conto capitale n.a.c.;09-02-2017;
36;1;0;"146,40";"146,40";REGIONE DEL VENETO GIUNTA REGIONALE; ;SALDO Fatt.n. 1186  del 30/12/2016 (COD. INT. 336075-336077) BUR N.128 DEL 30/12/2016: ESTRATTO DECRETI - Fattura Nr. 1186/2016;09-02-2017;24170;0;110;2;Spese in conto capitale;5;Altre spese in conto capitale;99;Altre spese in conto capitale n.a.c.;99;Altre spese in conto capitale n.a.c.;999;Altre spese in conto capitale n.a.c.;09-02-2017;
37;1;0;"1.372,50";"1.372,50";NEXT.ORG S.A.S. DI BARDELLI ING. ELIO & C.;Z5818ED357;SALDO Fatt.n. 9-E  del 16/01/2017 Prestazioni di Servizio Informatico e Sistemistici vs. CIG Z5818ED357;09-02-2017;11390;0;73;1;Spese correnti;3;Acquisto di beni e servizi;2;Acquisto di servizi;99;Altri servizi;999;Altri servizi diversi n.a.c.;09-02-2017;
38;1;0;"108,97";"108,97";TECNOCOPY S.R.L.;ZA30E29C30;SALDO Fatt.n. 237/PA  del 28/12/2016 FOTOCOPIE PERIODO 01/11/2016 - 31/12/2016.;09-02-2017;11390;0;29;1;Spese correnti;3;Acquisto di beni e servizi;2;Acquisto di servizi;99;Altri servizi;999;Altri servizi diversi n.a.c.;09-02-2017;
39;1;0;"9.760,00";"9.760,00";ALMA MATER STUDIORUM - UNIVERSITA' DI BOLOGNA;Z9D1ABAB38;SALDO Fatt.n. VE0N9-31  del 16/12/2016 CIG Z9D1ABAB38 -DETERM. 24/16 -  REP. 117/2016- PROT. 1925-05/07/2016- UNIONE MONTANA ALTO ASTICO- RESP. BITELLI;09-02-2017;24150;0;63;2;Spese in conto capitale;5;Altre spese in conto capitale;99;Altre spese in conto capitale n.a.c.;99;Altre spese in conto capitale n.a.c.;999;Altre spese in conto capitale n.a.c.;09-02-2017;
43;1;0;"1.044,32";"3.503,84";BAR METEORA DI MARTINI DANIELA; ;SALDO Fatt.n. 2/FE  del 23/12/2016 COMPENSO VENDITA BOLLINI FUNGHI ANNO 2016.;10-02-2017;14125;0;120;1;Spese correnti;3;Acquisto di beni e servizi;2;Acquisto di servizi;3;Aggi di riscossione;999;Altri aggi di riscossione n.a.c.;10-02-2017;
43;2;0;"131,76";"3.503,84";BAR TRATTORIA DI DAL BIANCO CINZIA; ;SALDO Fatt.n. 01  del 29/11/2016 VENDITA PERMESSI FUNGHI ANNO 2016.;10-02-2017;14125;0;120;1;Spese correnti;3;Acquisto di beni e servizi;2;Acquisto di servizi;3;Aggi di riscossione;999;Altri aggi di riscossione n.a.c.;10-02-2017;
43;3;0;"143,96";"3.503,84";CALGARO ROSETTA; ;SALDO Fatt.n. 4  del 18/11/2016 VENDITA PERMESSI FUNGHI ANNO 2016.;10-02-2017;14125;0;120;1;Spese correnti;3;Acquisto di beni e servizi;2;Acquisto di servizi;3;Aggi di riscossione;999;Altri aggi di riscossione n.a.c.;10-02-2017;
43;4;0;"173,24";"3.503,84";CARTOLIBRERIA MARCONI DI BAJO MANUELA E BAJO LORENZO; ;SALDO Fatt.n. 19  del 25/11/2016 Permessi funghi;10-02-2017;14125;0;120;1;Spese correnti;3;Acquisto di beni e servizi;2;Acquisto di servizi;3;Aggi di riscossione;999;Altri aggi di riscossione n.a.c.;10-02-2017;
43;5;0;"1.334,68";"3.503,84";DA PAOLO S.N.C.; ;SALDO Fatt.n. 00001/03  del 14/12/2016 COMPENSO VENDITA PERMESSI FUNGHI ANNO 2016.;10-02-2017;14125;0;120;1;Spese correnti;3;Acquisto di beni e servizi;2;Acquisto di servizi;3;Aggi di riscossione;999;Altri aggi di riscossione n.a.c.;10-02-2017;
43;6;0;"189,10";"3.503,84";EDICOLA ROSSI SNC DI ROSSI SILVIA E LISA; ;SALDO Fatt.n. 3/pa  del 22/12/2016 AGGIO SU VENDITA PERMESSI FUNGHI ANNO 2016.;10-02-2017;14125;0;120;1;Spese correnti;3;Acquisto di beni e servizi;2;Acquisto di servizi;3;Aggi di riscossione;999;Altri aggi di riscossione n.a.c.;10-02-2017;
43;7;0;"236,68";"3.503,84";F.LLI FIORENTINI S.A.S. DI FIORENTINI MARA; ;SALDO Fatt.n. 00002/02  del 22/12/2016 VENDITA BOLLINI FUNGHI ANNO 2016.;10-02-2017;14125;0;120;1;Spese correnti;3;Acquisto di beni e servizi;2;Acquisto di servizi;3;Aggi di riscossione;999;Altri aggi di riscossione n.a.c.;10-02-2017;
43;8;0;"100,04";"3.503,84";"FED DI RIZZATO FRANCESCA &amp; C. S.A.S."; ;SALDO Fatt.n. 000002-2016-A  del 30/11/2016 FATTURA PER VENDITA PERMESSI FUNGHI 2016;10-02-2017;14125;0;120;1;Spese correnti;3;Acquisto di beni e servizi;2;Acquisto di servizi;3;Aggi di riscossione;999;Altri aggi di riscossione n.a.c.;10-02-2017;
43;9;0;"57,34";"3.503,84";FONTANA IGINA; ;SALDO Fatt.n. 000001-2017-PAFON  del 16/01/2017 COMPENSO PERMESSI RACCOLTA FUNGHI;10-02-2017;14125;0;120;1;Spese correnti;3;Acquisto di beni e servizi;2;Acquisto di servizi;3;Aggi di riscossione;999;Altri aggi di riscossione n.a.c.;10-02-2017;
43;10;0;"35,38";"3.503,84";L'EDICOLA DI VELO DI JESSICA CORTIANA; ;SALDO Fatt.n. 03  del 07/12/2016 PERMESSI RACCOLTA FUNGHI ANNO 2016.;10-02-2017;14125;0;120;1;Spese correnti;3;Acquisto di beni e servizi;2;Acquisto di servizi;3;Aggi di riscossione;999;Altri aggi di riscossione n.a.c.;10-02-2017;
43;11;0;"41,48";"3.503,84";MOLO ALESSANDRO E GENERO LILIANA SNC; ;SALDO Fatt.n. 000001-2016-A  del 13/12/2016 FATTURA PER VENDITA PERMESSI FUNGHI 2016;10-02-2017;14125;0;120;1;Spese correnti;3;Acquisto di beni e servizi;2;Acquisto di servizi;3;Aggi di riscossione;999;Altri aggi di riscossione n.a.c.;10-02-2017;
43;12;0;"15,86";"3.503,84";STELLA ALESSANDRA; ;SALDO Fatt.n. 4-PA  del 13/12/2016 FATTURA PER COMPENSO VENDITA PERMESSI FUNGHI 2016;10-02-2017;14125;0;120;1;Spese correnti;3;Acquisto di beni e servizi;2;Acquisto di servizi;3;Aggi di riscossione;999;Altri aggi di riscossione n.a.c.;10-02-2017;
44;1;0;"12.765,22";"12.765,22";LA LOCOMOTIVA COOPERATIVA SOCIALE ONLUS;6257521DAC;ACCONTO Fatt.n. P/335  del 30/12/2016 ASSISTENZ DOMICILIARE MESE DI NOVEMBRE ANNO 2016.;10-02-2017;15115;0;8;1;Spese correnti;3;Acquisto di beni e servizi;2;Acquisto di servizi;18;Servizi sanitari;999;Altri acquisti di servizi sanitari n.a.c.;10-02-2017;
45;1;0;"1.505,73";"1.505,73";LA LOCOMOTIVA COOPERATIVA SOCIALE ONLUS; ;SALDO Fatt.n. P/335  del 30/12/2016 ASSISTENZ DOMICILIARE MESE DI NOVEMBRE ANNO 2016.;10-02-2017;15119;0;107;1;Spese correnti;3;Acquisto di beni e servizi;2;Acquisto di servizi;18;Servizi sanitari;999;Altri acquisti di servizi sanitari n.a.c.;10-02-2017;
46;1;0;"4.440,80";"4.440,80";MENEGUZZO AVV. DARIO; ;SALDO Fatt.n. 41/FE/2016  del 20/12/2016 Comunita' Montana Alto Astico E Posina/Dalle Carbonare Agostino - RG 10000561/11 - Civile - RG: 10000561/2011;13-02-2017;24303;0;378;2;Spese in conto capitale;5;Altre spese in conto capitale;99;Altre spese in conto capitale n.a.c.;99;Altre spese in conto capitale n.a.c.;999;Altre spese in conto capitale n.a.c.;13-02-2017;
47;1;0;"679,54";"679,54";TIPOGRAFIA G. FUGA & FIGLI S.a.s.;Z641B9D456;SALDO Fatt.n. 63/PA  del 21/10/2016 MATERIALE VARIO CONFEZIONATURA LIBRI BIBILIOTECHE.;13-02-2017;12130;0;98;1;Spese correnti;3;Acquisto di beni e servizi;2;Acquisto di servizi;99;Altri servizi;999;Altri servizi diversi n.a.c.;13-02-2017;
48;1;0;"0,19";"143,07";IBS.IT INTERNET BOOKSHOP ITALIA SRL;ZA1185FD77;ACCONTO Fatt.n. 57292/C  del 15/12/2016 ACQUISTO VOLUMI VARI BIBLIOTECHE.;13-02-2017;12110;0;12;1;Spese correnti;3;Acquisto di beni e servizi;1;Acquisto di beni;1;"Giornali, riviste e pubblicazioni";2;Pubblicazioni;13-02-2017;
48;2;0;"143,26";"143,07";IBS.IT INTERNET BOOKSHOP ITALIA SRL;ZA1185FD77;SALDO Fatt.n. 57292/C  del 15/12/2016 ACQUISTO VOLUMI VARI BIBLIOTECHE.;13-02-2017;12110;0;12;1;Spese correnti;3;Acquisto di beni e servizi;1;Acquisto di beni;1;"Giornali, riviste e pubblicazioni";2;Pubblicazioni;13-02-2017;
49;1;0;"8,51";"1.031,14";CENTRO BIBLIOTECHE LOVAT S.R.L.;ZEE185FCA6;ACCONTO Fatt.n. 716-16PA  del 27/12/2016 VOLL.PER BIBLIOTECA DI VELO D'ASTICO;15-02-2017;12110;0;12;1;Spese correnti;3;Acquisto di beni e servizi;1;Acquisto di beni;1;"Giornali, riviste e pubblicazioni";2;Pubblicazioni;15-02-2017;
49;2;0;"179,66";"1.031,14";CENTRO BIBLIOTECHE LOVAT S.R.L.;ZEE185FCA6;SALDO Fatt.n. 715-16PA  del 27/12/2016 VOLL.PER BIBLIOTECA DI ARSIERO;15-02-2017;12110;0;12;1;Spese correnti;3;Acquisto di beni e servizi;1;Acquisto di beni;1;"Giornali, riviste e pubblicazioni";2;Pubblicazioni;15-02-2017;
49;3;0;"83,36";"1.031,14";IBS.IT INTERNET BOOKSHOP ITALIA SRL;ZEE185FCA6;SALDO Fatt.n. 53102/C  del 04/12/2016 ACQUISTO VOLUMI VARI PER LE BIBLIOTECHE.;15-02-2017;12110;0;12;1;Spese correnti;3;Acquisto di beni e servizi;1;Acquisto di beni;1;"Giornali, riviste e pubblicazioni";2;Pubblicazioni;15-02-2017;
49;4;0;"325,47";"1.031,14";LIBRERIA LEONI SRL;Z6E1388E54;SALDO Fatt.n. 99  del 15/12/2016 ACQUISTO VOLUMI VARI BIBLIOTECHE.;15-02-2017;12110;0;12;1;Spese correnti;3;Acquisto di beni e servizi;1;Acquisto di beni;1;"Giornali, riviste e pubblicazioni";2;Pubblicazioni;15-02-2017;
49;5;0;"434,14";"1.031,14";LIBRERIA LEONI SRL;Z6E1388E54;SALDO Fatt.n. 110-1  del 29/12/2016 ACQUISTO VOLUMI VARI BIBLIOTECHE.;15-02-2017;12110;0;12;1;Spese correnti;3;Acquisto di beni e servizi;1;Acquisto di beni;1;"Giornali, riviste e pubblicazioni";2;Pubblicazioni;15-02-2017;
50;1;0;"112,03";"112,03";CENTRO BIBLIOTECHE LOVAT S.R.L.;ZEE185FCA6;SALDO Fatt.n. 716-16PA  del 27/12/2016 VOLL.PER BIBLIOTECA DI VELO D'ASTICO;15-02-2017;12146;0;72;1;Spese correnti;3;Acquisto di beni e servizi;1;Acquisto di beni;2;Altri beni di consumo;999;Altri beni e materiali di consumo n.a.c.;15-02-2017;
51;1;0;"978,32";"978,32";LIBRERIA LEONI SRL;Z6E1388E54;SALDO Fatt.n. 109  del 29/12/2016 ACQUISTO VOLUMI VARI BIBLIOTECHE.;15-02-2017;12110;0;12;1;Spese correnti;3;Acquisto di beni e servizi;1;Acquisto di beni;1;"Giornali, riviste e pubblicazioni";2;Pubblicazioni;15-02-2017;
52;1;0;"3.586,80";"3.586,80";ARCI SERVIZIO CIVILE VICENZA;ZDE18C6B72;SALDO Fatt.n. 14E/2016  del 15/12/2016 Selezione e avvio 4 volontari bando SCN 2016 progetto "Non solo libri" Cura e conservazione biblioteche;15-02-2017;12144;0;103;1;Spese correnti;3;Acquisto di beni e servizi;2;Acquisto di servizi;13;Servizi ausiliari per il funzionamento dell'ente;999;Altri servizi ausiliari n.a.c.;15-02-2017;
53;1;0;"347,70";"347,70";NEXT.ORG S.A.S. DI BARDELLI ING. ELIO & C.;ZB21CC06FA;SALDO Fatt.n. 54-E  del 31/12/2016 Fornitura Monitor Philips 27" 3D vs. CIG ZB21CC06FA;15-02-2017;26155;0;53;2;Spese in conto capitale;5;Altre spese in conto capitale;99;Altre spese in conto capitale n.a.c.;99;Altre spese in conto capitale n.a.c.;999;Altre spese in conto capitale n.a.c.;15-02-2017;
54;1;0;"300,00";"300,00";RIZZI STEFANO; ;"LETTURE NATALIZIE AD ALTA VOCE PRESSO LE BIBLIOTECHE. ORGANIZZAZIONE E IMPEGNO DI SPESA PER GLI INCONTRI DA TENERSI PRESSO LE BIBLIOTECHE DI ARSIERO, COGOLLO DEL CENGIO, PEDEMONTE, VALDASTICO E VELO D'ASTICO.";15-02-2017;12130;0;127;1;Spese correnti;3;Acquisto di beni e servizi;2;Acquisto di servizi;99;Altri servizi;999;Altri servizi diversi n.a.c.;15-02-2017;
75;1;0;"33,57";"33,57";COMUNE DI ARSIERO; ;SALDO Fatt.n. 52/B/3  del 30/12/2016 FORNITURA PASTI VOLONTARI SERVIZIO CIVILE MESE DICEMBRE 2016;03-03-2017;12144;0;80;1;Spese correnti;3;Acquisto di beni e servizi;2;Acquisto di servizi;13;Servizi ausiliari per il funzionamento dell'ente;999;Altri servizi ausiliari n.a.c.;03-03-2017;
76;1;0;"800,00";"2.800,00";OMESSO NOMINATIVO NEL RISPETTO DELLA NORMATIVA SULLA PROTEZIONE DATI PERSONALI; ;LIQUIDAZIONE ICDm QUARTO TRIMESTRE 2016.;03-03-2017;15150;0;7;1;Spese correnti;4;Trasferimenti correnti;2;Trasferimenti correnti a Famiglie;2;Interventi assistenziali;999;Altri assegni e sussidi assistenziali;03-03-2017;
76;2;0;"800,00";"2.800,00";OMESSO NOMINATIVO NEL RISPETTO DELLA NORMATIVA SULLA PROTEZIONE DATI PERSONALI; ;LIQUIDAZIONE ICDm QUARTO TRIMESTRE 2016.;03-03-2017;15150;0;7;1;Spese correnti;4;Trasferimenti correnti;2;Trasferimenti correnti a Famiglie;2;Interventi assistenziali;999;Altri assegni e sussidi assistenziali;03-03-2017;
76;3;0;"400,00";"2.800,00";OMESSO NOMINATIVO NEL RISPETTO DELLA NORMATIVA SULLA PROTEZIONE DATI PERSONALI; ;LIQUIDAZIONE ICDm QUARTO TRIMESTRE 2016.;03-03-2017;15150;0;7;1;Spese correnti;4;Trasferimenti correnti;2;Trasferimenti correnti a Famiglie;2;Interventi assistenziali;999;Altri assegni e sussidi assistenziali;03-03-2017;
76;4;0;"800,00";"2.800,00";OMESSO NOMINATIVO NEL RISPETTO DELLA NORMATIVA SULLA PROTEZIONE DATI PERSONALI; ;LIQUIDAZIONE ICDm QUARTO TRIMESTRE 2016.;03-03-2017;15150;0;7;1;Spese correnti;4;Trasferimenti correnti;2;Trasferimenti correnti a Famiglie;2;Interventi assistenziali;999;Altri assegni e sussidi assistenziali;03-03-2017;
77;1;0;"2.250,58";"2.250,58";ASSOCIAZIONE S.M.M. KOLBE; ;LAVORI DI RIPARAZIONE PRESSO LA STAZIONE RIPETITORI DI MONTE SUMMANO. LIQUIDAZIONE ALL'ASS. "S.M.M. KOLBE".;08-03-2017;24170;0;12;2;Spese in conto capitale;5;Altre spese in conto capitale;99;Altre spese in conto capitale n.a.c.;99;Altre spese in conto capitale n.a.c.;999;Altre spese in conto capitale n.a.c.;08-03-2017;
78;1;0;"1.500,00";"1.500,00";EQUISTIAMO A.P.S.; ;"PROGETTO PAESAGGI TERRAZZATI. IL TERRAZZAMENTO DIFFUSO : UN PAESAGGIO DA RIGENERARE. PARTECIPAZIONE AL 3° CONVEGNO MONDIALE, MOSTRA, SVILUPPO, PERCORSO E APPROFONDIMENTO NEL TERRITORIO TRA LA VAL POSINA E LA VAL D'ASTICO. EROGAZIONE CONTRIBUTO AD ASS";08-03-2017;14131;0;128;1;Spese correnti;4;Trasferimenti correnti;4;Trasferimenti correnti a Istituzioni Sociali Private;1;Trasferimenti correnti a Istituzioni Sociali Private;1;Trasferimenti correnti a Istituzioni Sociali Private;08-03-2017;
79;1;0;"2,01";"157,26";ENI ADFIN S.P.A.;Z8819C2A81;SPESE FUNZIONAMENTO E MANUTENZIONE AUTOMEZZI SERVIZI ASSOCIATI.IMPEGNO DI SPESA ANNO 2016.;08-03-2017;11265;0;38;1;Spese correnti;3;Acquisto di beni e servizi;1;Acquisto di beni;2;Altri beni di consumo;2;"Carburanti, combustibili e lubrificanti";08-03-2017;
79;2;0;"155,25";"157,26";ENI ADFIN S.P.A.;Z8819C2A81;SALDO Fatt.n. 30024174  del 30/11/2016 CARBURANTI MESE DI NOVEMBRE 2016.;08-03-2017;11265;0;38;1;Spese correnti;3;Acquisto di beni e servizi;1;Acquisto di beni;2;Altri beni di consumo;2;"Carburanti, combustibili e lubrificanti";08-03-2017;
103;1;0;"902,40";"902,40";DAY RISTOSERVICE S.P.A.;Z791D0A0D8;SALDO Fatt.n. V0-9834  del 24/01/2017 ACQUISTO BUONI PASTO ANNO 2017.;29-03-2017;11330;0;11;1;Spese correnti;3;Acquisto di beni e servizi;2;Acquisto di servizi;99;Altri servizi;999;Altri servizi diversi n.a.c.;29-03-2017;
105;1;0;"1.796,03";"1.796,03";LA LOCOMOTIVA COOPERATIVA SOCIALE ONLUS;Z31197AA89;SALDO Fatt.n. P/42  del 07/02/2017 GESTIONE PARTE DEL SERVIZIO DI SEGRETARIATO SOCIALE - MESE DI GENNAIO 2017.;29-03-2017;15119;0;105;1;Spese correnti;3;Acquisto di beni e servizi;2;Acquisto di servizi;18;Servizi sanitari;999;Altri acquisti di servizi sanitari n.a.c.;29-03-2017;
106;1;0;"2.307,67";"2.307,67";LA LOCOMOTIVA COOPERATIVA SOCIALE ONLUS;6257521DAC;SALDO Fatt.n. P/30  del 31/01/2017 CONSEGNA PASTI MESE DI DICEMBRE ANNO 2016.;29-03-2017;15125;0;10;1;Spese correnti;3;Acquisto di beni e servizi;2;Acquisto di servizi;14;Servizi di ristorazione;999;Altri servizi di ristorazione;29-03-2017;
107;1;0;"14.855,42";"14.855,42";LA LOCOMOTIVA COOPERATIVA SOCIALE ONLUS;6257521DAC;SALDO Fatt.n. P/29  del 31/01/2017 ASSISTENZA DOMICILIARE MESE DI DICEMBRE ANNO 2016.;29-03-2017;15119;0;107;1;Spese correnti;3;Acquisto di beni e servizi;2;Acquisto di servizi;18;Servizi sanitari;999;Altri acquisti di servizi sanitari n.a.c.;29-03-2017;
108;1;0;"1.470,00";"1.470,00";LA LOCOMOTIVA COOPERATIVA SOCIALE ONLUS;6257521DAC;ACCONTO Fatt.n. P/43  del 07/02/2017 GESTIONE SERVIZIO IMPIEGATIZIO DI SEGRETERIA - MESE DI GENNAIO 2017.;29-03-2017;15119;0;105;1;Spese correnti;3;Acquisto di beni e servizi;2;Acquisto di servizi;18;Servizi sanitari;999;Altri acquisti di servizi sanitari n.a.c.;29-03-2017;
109;1;0;"251,42";"251,42";LA LOCOMOTIVA COOPERATIVA SOCIALE ONLUS;Z31197AA89;SALDO Fatt.n. P/43  del 07/02/2017 GESTIONE SERVIZIO IMPIEGATIZIO DI SEGRETERIA - MESE DI GENNAIO 2017.;29-03-2017;15119;0;105;1;Spese correnti;3;Acquisto di beni e servizi;2;Acquisto di servizi;18;Servizi sanitari;999;Altri acquisti di servizi sanitari n.a.c.;29-03-2017;
110;1;0;"1.561,06";"1.561,06";COMUNE DI ARSIERO; ;SALDO Fatt.n. 1/B/3  del 31/01/2017 FORNITURA PASTI CALDI PERSONE ANZIANE MESE GENNAIO 2017;29-03-2017;15125;0;10;1;Spese correnti;3;Acquisto di beni e servizi;2;Acquisto di servizi;14;Servizi di ristorazione;999;Altri servizi di ristorazione;29-03-2017;
111;1;0;"103,69";"103,69";TECNOCOPY S.R.L.;ZA30E29C30;ACCONTO Fatt.n. 35/PA  del 28/02/2017 NOLEGGIO FOTOCOPIATRICE PERIODO 01/01/2017 - 28/02/2017.;29-03-2017;11390;0;50;1;Spese correnti;3;Acquisto di beni e servizi;2;Acquisto di servizi;99;Altri servizi;999;Altri servizi diversi n.a.c.;29-03-2017;
112;1;0;"0,05";"0,05";TECNOCOPY S.R.L.;ZA30E29C30;ACCONTO Fatt.n. 35/PA  del 28/02/2017 NOLEGGIO FOTOCOPIATRICE PERIODO 01/01/2017 - 28/02/2017.;29-03-2017;11390;0;29;1;Spese correnti;3;Acquisto di beni e servizi;2;Acquisto di servizi;99;Altri servizi;999;Altri servizi diversi n.a.c.;29-03-2017;
113;1;0;"5,23";"5,23";TECNOCOPY S.R.L.;ZA30E29C30;SALDO Fatt.n. 35/PA  del 28/02/2017 NOLEGGIO FOTOCOPIATRICE PERIODO 01/01/2017 - 28/02/2017.;29-03-2017;11390;0;15;1;Spese correnti;3;Acquisto di beni e servizi;2;Acquisto di servizi;99;Altri servizi;999;Altri servizi diversi n.a.c.;29-03-2017;
114;1;0;"567,30";"567,30";SIE INFORMATICA SAS;ZAE1D7DF78;SALDO Fatt.n. 13/P  del 23/02/2017 ACQUISTO PC.;29-03-2017;11190;0;9;1;Spese correnti;3;Acquisto di beni e servizi;1;Acquisto di beni;2;Altri beni di consumo;6;Materiale informatico;29-03-2017;
115;1;0;"23.772,65";"23.772,65";BUSON SIMONE;ZC81D7B283;ACCONTO Fatt.n. 04PA  del 21/02/2017 CHIUSURA PROCEDURA ESPROPRIATIVE TERRENI DISMISSIONE IMPIANTO DEPURATIVO TONEZZA.;29-03-2017;26150;0;135;2;Spese in conto capitale;5;Altre spese in conto capitale;99;Altre spese in conto capitale n.a.c.;99;Altre spese in conto capitale n.a.c.;999;Altre spese in conto capitale n.a.c.;29-03-2017;
116;1;0;"689,81";"689,81";BUSON SIMONE;ZC81D7B283;SALDO Fatt.n. 04PA  del 21/02/2017 CHIUSURA PROCEDURA ESPROPRIATIVE TERRENI DISMISSIONE IMPIANTO DEPURATIVO TONEZZA.;29-03-2017;26150;0;136;2;Spese in conto capitale;5;Altre spese in conto capitale;99;Altre spese in conto capitale n.a.c.;99;Altre spese in conto capitale n.a.c.;999;Altre spese in conto capitale n.a.c.;29-03-2017;
117;1;0;"19.002,80";"19.002,80";BUSON SIMONE;Z0A1D7B344;ACCONTO Fatt.n. 05PA  del 21/02/2017 CHIUSURA PROCEDURE ESPROPRIATIVE TERRENI RIFORNIMENTO IDRICO ALTOPIANO DEI FIORENTINI.;29-03-2017;24170;0;110;2;Spese in conto capitale;5;Altre spese in conto capitale;99;Altre spese in conto capitale n.a.c.;99;Altre spese in conto capitale n.a.c.;999;Altre spese in conto capitale n.a.c.;29-03-2017;
118;1;0;"308,34";"308,34";BUSON SIMONE;Z0A1D7B344;SALDO Fatt.n. 05PA  del 21/02/2017 CHIUSURA PROCEDURE ESPROPRIATIVE TERRENI RIFORNIMENTO IDRICO ALTOPIANO DEI FIORENTINI.;29-03-2017;26150;0;136;2;Spese in conto capitale;5;Altre spese in conto capitale;99;Altre spese in conto capitale n.a.c.;99;Altre spese in conto capitale n.a.c.;999;Altre spese in conto capitale n.a.c.;29-03-2017;
124;1;0;"77,06";"77,06";TELECOM ITALIA SPA;Z1A08E39DA;SALDO Fatt.n. 6820170105002459  del 19/01/2017 RIFATTURAZIONE   CONTO  8E01119411  BIM. 6/2015 LINEA 0445741797;29-03-2017;11205;0;65;1;Spese correnti;3;Acquisto di beni e servizi;2;Acquisto di servizi;5;Utenze e canoni;1;Telefonia fissa;29-03-2017;
125;1;0;"0,10";"462,26";TELECOM ITALIA SPA;Z971AE7849;ACCONTO Fatt.n. 8E01255852  del 06/12/2016 TELEFONIA N. 016113021870 - 1BIM 2017.;29-03-2017;11205;0;65;1;Spese correnti;3;Acquisto di beni e servizi;2;Acquisto di servizi;5;Utenze e canoni;1;Telefonia fissa;29-03-2017;
125;2;0;"2,25";"462,26";TELECOM ITALIA SPA;Z971AE7849;ACCONTO Fatt.n. 8E01254284  del 06/12/2016 TELEFONIA N. 044513345997 - 1BIM 2017.;29-03-2017;11205;0;65;1;Spese correnti;3;Acquisto di beni e servizi;2;Acquisto di servizi;5;Utenze e canoni;1;Telefonia fissa;29-03-2017;
125;3;0;"4,86";"462,26";TELECOM ITALIA SPA;Z971AE7849;ACCONTO Fatt.n. 8E01255852  del 06/12/2016 TELEFONIA N. 016113021870 - 1BIM 2017.;29-03-2017;11205;0;65;1;Spese correnti;3;Acquisto di beni e servizi;2;Acquisto di servizi;5;Utenze e canoni;1;Telefonia fissa;29-03-2017;
125;4;0;"75,64";"462,26";TELECOM ITALIA SPA;Z971AE7849;ACCONTO Fatt.n. 8E01254284  del 06/12/2016 TELEFONIA N. 044513345997 - 1BIM 2017.;29-03-2017;11205;0;65;1;Spese correnti;3;Acquisto di beni e servizi;2;Acquisto di servizi;5;Utenze e canoni;1;Telefonia fissa;29-03-2017;
125;5;0;"77,06";"462,26";TELECOM ITALIA SPA;Z1A08E39DA;SALDO Fatt.n. 8E01256540  del 06/12/2016 TELEFONIA N. 0445741797 - 1BIM 2017.;29-03-2017;11205;0;65;1;Spese correnti;3;Acquisto di beni e servizi;2;Acquisto di servizi;5;Utenze e canoni;1;Telefonia fissa;29-03-2017;
125;6;0;"148,51";"462,26";TELECOM ITALIA SPA;Z1A08E39DA;SALDO Fatt.n. 8E01252611  del 06/12/2016 TELEFONIA N. 0445740529 - 1BIM 2017.;29-03-2017;11205;0;65;1;Spese correnti;3;Acquisto di beni e servizi;2;Acquisto di servizi;5;Utenze e canoni;1;Telefonia fissa;29-03-2017;
125;7;0;"153,84";"462,26";TELECOM ITALIA SPA;Z1A08E39DA;SALDO Fatt.n. 8E01255395  del 06/12/2016 TELEFONIA N. 0445742373 - 1BIM 2017.;29-03-2017;11205;0;65;1;Spese correnti;3;Acquisto di beni e servizi;2;Acquisto di servizi;5;Utenze e canoni;1;Telefonia fissa;29-03-2017;
126;1;0;"1.158,18";"1.158,18";Soenergy S.r.l.;ZE91780D56;SALDO Fatt.n. 171007781  del 13/01/2017 FORNITURA GAS 01/12/2016 - 31/12/2016.;29-03-2017;11205;0;34;1;Spese correnti;3;Acquisto di beni e servizi;2;Acquisto di servizi;5;Utenze e canoni;6;Gas;29-03-2017;
127;1;0;"378,17";"378,17";SERVIZIO ELETTRICO NAZIONALE SERVIZIO DI MAGGIOR TUTELA;Z3919F11FA;"ACCONTO Fatt.n. 244402906038024  del 10/02/2017 ENERGIA ELETTRICA VIA EUROPA, GEN.2017 - FEB.2017.";30-03-2017;11205;0;39;1;Spese correnti;3;Acquisto di beni e servizi;2;Acquisto di servizi;5;Utenze e canoni;4;Energia elettrica;30-03-2017;
128;1;0;"22,49";"22,49";SERVIZIO ELETTRICO NAZIONALE SERVIZIO DI MAGGIOR TUTELA;ZC21DBF814;"SALDO Fatt.n. 244402906038024  del 10/02/2017 ENERGIA ELETTRICA VIA EUROPA, GEN.2017 - FEB.2017.";30-03-2017;11205;0;13;1;Spese correnti;3;Acquisto di beni e servizi;2;Acquisto di servizi;5;Utenze e canoni;4;Energia elettrica;30-03-2017;
129;1;0;"126,62";"308,91";SERVIZIO ELETTRICO NAZIONALE SERVIZIO DI MAGGIOR TUTELA;ZC21DBF814;"SALDO Fatt.n. 244402906038124  del 10/02/2017 ENERGIA ELETTRICA VIA EUROPA, GEN.2017 - FEB.2017.";30-03-2017;11205;0;13;1;Spese correnti;3;Acquisto di beni e servizi;2;Acquisto di servizi;5;Utenze e canoni;4;Energia elettrica;30-03-2017;
129;2;0;"182,29";"308,91";SERVIZIO ELETTRICO NAZIONALE SERVIZIO DI MAGGIOR TUTELA;ZC21DBF814;"SALDO Fatt.n. 243404635015244  del 10/02/2017 ENERGIA ELETTRICA MONTE SUMMANO, GEN.2017 - FEB.2017.";30-03-2017;11205;0;13;1;Spese correnti;3;Acquisto di beni e servizi;2;Acquisto di servizi;5;Utenze e canoni;4;Energia elettrica;30-03-2017;
130;1;0;"402,60";"402,60";ARCI SERVIZIO CIVILE VICENZA;ZDE18C6B72;ACCONTO Fatt.n. 15E/2016  del 15/12/2016 Selezione e avvio 2 volontari bando SCN 2016 progetto "Vivere alla grande" Assistenza Anziani;30-03-2017;12144;0;103;1;Spese correnti;3;Acquisto di beni e servizi;2;Acquisto di servizi;13;Servizi ausiliari per il funzionamento dell'ente;999;Altri servizi ausiliari n.a.c.;30-03-2017;
131;1;0;"1.476,20";"1.476,20";ARCI SERVIZIO CIVILE VICENZA; ;SALDO Fatt.n. 15E/2016  del 15/12/2016 Selezione e avvio 2 volontari bando SCN 2016 progetto "Vivere alla grande" Assistenza Anziani;30-03-2017;15160;0;115;1;Spese correnti;3;Acquisto di beni e servizi;2;Acquisto di servizi;99;Altri servizi;999;Altri servizi diversi n.a.c.;30-03-2017;
132;1;0;"800,00";"800,00";UFFICIO POSTALE ARSIERO; ;CONCESSIONE GESTIONE IMPIANTI ASTICO COLLETTORE FOGNARIO - RIMBORSO ECONOMO SPESE SPEDIZIONE PROCEDURE ESPROPRIATIVE.;04-04-2017;26150;0;136;2;Spese in conto capitale;5;Altre spese in conto capitale;99;Altre spese in conto capitale n.a.c.;99;Altre spese in conto capitale n.a.c.;999;Altre spese in conto capitale n.a.c.;04-04-2017;
157;1;0;"720,00";"1.440,00";OMESSO NOMINATIVO NEL RISPETTO DELLA NORMATIVA SULLA PROTEZIONE DATI PERSONALI; ;IMPEGNATIVA DI CURA DOMICILIARE SECONDO SEMESTRE ANNO 2016.;04-05-2017;15150;0;106;1;Spese correnti;4;Trasferimenti correnti;2;Trasferimenti correnti a Famiglie;2;Interventi assistenziali;999;Altri assegni e sussidi assistenziali;04-05-2017;
157;2;0;"720,00";"1.440,00";OMESSO NOMINATIVO NEL RISPETTO DELLA NORMATIVA SULLA PROTEZIONE DATI PERSONALI; ;IMPEGNATIVA DI CURA DOMICILIARE SECONDO SEMESTRE ANNO 2016.;04-05-2017;15150;0;106;1;Spese correnti;4;Trasferimenti correnti;2;Trasferimenti correnti a Famiglie;2;Interventi assistenziali;999;Altri assegni e sussidi assistenziali;04-05-2017;
158;1;0;"360,00";"11.520,00";OMESSO NOMINATIVO NEL RISPETTO DELLA NORMATIVA SULLA PROTEZIONE DATI PERSONALI; ;"COMUNI DI ARSIERO, COGOLLO DEL CENGIO, LAGHI, LASTEBASSE, PEDEMONTE, TONEZZA DEL CIMONE, VALDASTICO E VELO D'ASTICO: IMPEGNATIVA DI CURA DOMICILIARE (ICDb) SECONDO SEMESTRE 2016. IMPEGNO DI SPESA E LIQUIDAZIONE BENEFICIARI INDIVIDUATI DALLA REGIONE V";04-05-2017;15150;0;36;1;Spese correnti;4;Trasferimenti correnti;2;Trasferimenti correnti a Famiglie;2;Interventi assistenziali;999;Altri assegni e sussidi assistenziali;04-05-2017;
158;2;0;"720,00";"11.520,00";OMESSO NOMINATIVO NEL RISPETTO DELLA NORMATIVA SULLA PROTEZIONE DATI PERSONALI; ;"COMUNI DI ARSIERO, COGOLLO DEL CENGIO, LAGHI, LASTEBASSE, PEDEMONTE, TONEZZA DEL CIMONE, VALDASTICO E VELO D'ASTICO: IMPEGNATIVA DI CURA DOMICILIARE (ICDb) SECONDO SEMESTRE 2016. IMPEGNO DI SPESA E LIQUIDAZIONE BENEFICIARI INDIVIDUATI DALLA REGIONE V";04-05-2017;15150;0;36;1;Spese correnti;4;Trasferimenti correnti;2;Trasferimenti correnti a Famiglie;2;Interventi assistenziali;999;Altri assegni e sussidi assistenziali;04-05-2017;
158;3;0;"720,00";"11.520,00";OMESSO NOMINATIVO NEL RISPETTO DELLA NORMATIVA SULLA PROTEZIONE DATI PERSONALI; ;"COMUNI DI ARSIERO, COGOLLO DEL CENGIO, LAGHI, LASTEBASSE, PEDEMONTE, TONEZZA DEL CIMONE, VALDASTICO E VELO D'ASTICO: IMPEGNATIVA DI CURA DOMICILIARE (ICDb) SECONDO SEMESTRE 2016. IMPEGNO DI SPESA E LIQUIDAZIONE BENEFICIARI INDIVIDUATI DALLA REGIONE V";04-05-2017;15150;0;36;1;Spese correnti;4;Trasferimenti correnti;2;Trasferimenti correnti a Famiglie;2;Interventi assistenziali;999;Altri assegni e sussidi assistenziali;04-05-2017;
158;4;0;"720,00";"11.520,00";OMESSO NOMINATIVO NEL RISPETTO DELLA NORMATIVA SULLA PROTEZIONE DATI PERSONALI; ;"COMUNI DI ARSIERO, COGOLLO DEL CENGIO, LAGHI, LASTEBASSE, PEDEMONTE, TONEZZA DEL CIMONE, VALDASTICO E VELO D'ASTICO: IMPEGNATIVA DI CURA DOMICILIARE (ICDb) SECONDO SEMESTRE 2016. IMPEGNO DI SPESA E LIQUIDAZIONE BENEFICIARI INDIVIDUATI DALLA REGIONE V";04-05-2017;15150;0;36;1;Spese correnti;4;Trasferimenti correnti;2;Trasferimenti correnti a Famiglie;2;Interventi assistenziali;999;Altri assegni e sussidi assistenziali;04-05-2017;
158;5;0;"720,00";"11.520,00";OMESSO NOMINATIVO NEL RISPETTO DELLA NORMATIVA SULLA PROTEZIONE DATI PERSONALI; ;"COMUNI DI ARSIERO, COGOLLO DEL CENGIO, LAGHI, LASTEBASSE, PEDEMONTE, TONEZZA DEL CIMONE, VALDASTICO E VELO D'ASTICO: IMPEGNATIVA DI CURA DOMICILIARE (ICDb) SECONDO SEMESTRE 2016. IMPEGNO DI SPESA E LIQUIDAZIONE BENEFICIARI INDIVIDUATI DALLA REGIONE V";04-05-2017;15150;0;36;1;Spese correnti;4;Trasferimenti correnti;2;Trasferimenti correnti a Famiglie;2;Interventi assistenziali;999;Altri assegni e sussidi assistenziali;04-05-2017;
158;6;0;"720,00";"11.520,00";OMESSO NOMINATIVO NEL RISPETTO DELLA NORMATIVA SULLA PROTEZIONE DATI PERSONALI; ;"COMUNI DI ARSIERO, COGOLLO DEL CENGIO, LAGHI, LASTEBASSE, PEDEMONTE, TONEZZA DEL CIMONE, VALDASTICO E VELO D'ASTICO: IMPEGNATIVA DI CURA DOMICILIARE (ICDb) SECONDO SEMESTRE 2016. IMPEGNO DI SPESA E LIQUIDAZIONE BENEFICIARI INDIVIDUATI DALLA REGIONE V";04-05-2017;15150;0;36;1;Spese correnti;4;Trasferimenti correnti;2;Trasferimenti correnti a Famiglie;2;Interventi assistenziali;999;Altri assegni e sussidi assistenziali;04-05-2017;
158;7;0;"240,00";"11.520,00";OMESSO NOMINATIVO NEL RISPETTO DELLA NORMATIVA SULLA PROTEZIONE DATI PERSONALI; ;"COMUNI DI ARSIERO, COGOLLO DEL CENGIO, LAGHI, LASTEBASSE, PEDEMONTE, TONEZZA DEL CIMONE, VALDASTICO E VELO D'ASTICO: IMPEGNATIVA DI CURA DOMICILIARE (ICDb) SECONDO SEMESTRE 2016. IMPEGNO DI SPESA E LIQUIDAZIONE BENEFICIARI INDIVIDUATI DALLA REGIONE V";04-05-2017;15150;0;36;1;Spese correnti;4;Trasferimenti correnti;2;Trasferimenti correnti a Famiglie;2;Interventi assistenziali;999;Altri assegni e sussidi assistenziali;04-05-2017;
158;8;0;"720,00";"11.520,00";OMESSO NOMINATIVO NEL RISPETTO DELLA NORMATIVA SULLA PROTEZIONE DATI PERSONALI; ;"COMUNI DI ARSIERO, COGOLLO DEL CENGIO, LAGHI, LASTEBASSE, PEDEMONTE, TONEZZA DEL CIMONE, VALDASTICO E VELO D'ASTICO: IMPEGNATIVA DI CURA DOMICILIARE (ICDb) SECONDO SEMESTRE 2016. IMPEGNO DI SPESA E LIQUIDAZIONE BENEFICIARI INDIVIDUATI DALLA REGIONE V";04-05-2017;15150;0;36;1;Spese correnti;4;Trasferimenti correnti;2;Trasferimenti correnti a Famiglie;2;Interventi assistenziali;999;Altri assegni e sussidi assistenziali;04-05-2017;
158;9;0;"720,00";"11.520,00";OMESSO NOMINATIVO NEL RISPETTO DELLA NORMATIVA SULLA PROTEZIONE DATI PERSONALI; ;"COMUNI DI ARSIERO, COGOLLO DEL CENGIO, LAGHI, LASTEBASSE, PEDEMONTE, TONEZZA DEL CIMONE, VALDASTICO E VELO D'ASTICO: IMPEGNATIVA DI CURA DOMICILIARE (ICDb) SECONDO SEMESTRE 2016. IMPEGNO DI SPESA E LIQUIDAZIONE BENEFICIARI INDIVIDUATI DALLA REGIONE V";04-05-2017;15150;0;36;1;Spese correnti;4;Trasferimenti correnti;2;Trasferimenti correnti a Famiglie;2;Interventi assistenziali;999;Altri assegni e sussidi assistenziali;04-05-2017;
158;10;0;"720,00";"11.520,00";OMESSO NOMINATIVO NEL RISPETTO DELLA NORMATIVA SULLA PROTEZIONE DATI PERSONALI; ;"COMUNI DI ARSIERO, COGOLLO DEL CENGIO, LAGHI, LASTEBASSE, PEDEMONTE, TONEZZA DEL CIMONE, VALDASTICO E VELO D'ASTICO: IMPEGNATIVA DI CURA DOMICILIARE (ICDb) SECONDO SEMESTRE 2016. IMPEGNO DI SPESA E LIQUIDAZIONE BENEFICIARI INDIVIDUATI DALLA REGIONE V";04-05-2017;15150;0;36;1;Spese correnti;4;Trasferimenti correnti;2;Trasferimenti correnti a Famiglie;2;Interventi assistenziali;999;Altri assegni e sussidi assistenziali;04-05-2017;
158;11;0;"720,00";"11.520,00";OMESSO NOMINATIVO NEL RISPETTO DELLA NORMATIVA SULLA PROTEZIONE DATI PERSONALI; ;"COMUNI DI ARSIERO, COGOLLO DEL CENGIO, LAGHI, LASTEBASSE, PEDEMONTE, TONEZZA DEL CIMONE, VALDASTICO E VELO D'ASTICO: IMPEGNATIVA DI CURA DOMICILIARE (ICDb) SECONDO SEMESTRE 2016. IMPEGNO DI SPESA E LIQUIDAZIONE BENEFICIARI INDIVIDUATI DALLA REGIONE V";04-05-2017;15150;0;36;1;Spese correnti;4;Trasferimenti correnti;2;Trasferimenti correnti a Famiglie;2;Interventi assistenziali;999;Altri assegni e sussidi assistenziali;04-05-2017;
158;12;0;"120,00";"11.520,00";OMESSO NOMINATIVO NEL RISPETTO DELLA NORMATIVA SULLA PROTEZIONE DATI PERSONALI; ;"COMUNI DI ARSIERO, COGOLLO DEL CENGIO, LAGHI, LASTEBASSE, PEDEMONTE, TONEZZA DEL CIMONE, VALDASTICO E VELO D'ASTICO: IMPEGNATIVA DI CURA DOMICILIARE (ICDb) SECONDO SEMESTRE 2016. IMPEGNO DI SPESA E LIQUIDAZIONE BENEFICIARI INDIVIDUATI DALLA REGIONE V";04-05-2017;15150;0;36;1;Spese correnti;4;Trasferimenti correnti;2;Trasferimenti correnti a Famiglie;2;Interventi assistenziali;999;Altri assegni e sussidi assistenziali;04-05-2017;
158;13;0;"720,00";"11.520,00";OMESSO NOMINATIVO NEL RISPETTO DELLA NORMATIVA SULLA PROTEZIONE DATI PERSONALI; ;"COMUNI DI ARSIERO, COGOLLO DEL CENGIO, LAGHI, LASTEBASSE, PEDEMONTE, TONEZZA DEL CIMONE, VALDASTICO E VELO D'ASTICO: IMPEGNATIVA DI CURA DOMICILIARE (ICDb) SECONDO SEMESTRE 2016. IMPEGNO DI SPESA E LIQUIDAZIONE BENEFICIARI INDIVIDUATI DALLA REGIONE V";04-05-2017;15150;0;36;1;Spese correnti;4;Trasferimenti correnti;2;Trasferimenti correnti a Famiglie;2;Interventi assistenziali;999;Altri assegni e sussidi assistenziali;04-05-2017;
158;14;0;"720,00";"11.520,00";OMESSO NOMINATIVO NEL RISPETTO DELLA NORMATIVA SULLA PROTEZIONE DATI PERSONALI; ;"COMUNI DI ARSIERO, COGOLLO DEL CENGIO, LAGHI, LASTEBASSE, PEDEMONTE, TONEZZA DEL CIMONE, VALDASTICO E VELO D'ASTICO: IMPEGNATIVA DI CURA DOMICILIARE (ICDb) SECONDO SEMESTRE 2016. IMPEGNO DI SPESA E LIQUIDAZIONE BENEFICIARI INDIVIDUATI DALLA REGIONE V";04-05-2017;15150;0;36;1;Spese correnti;4;Trasferimenti correnti;2;Trasferimenti correnti a Famiglie;2;Interventi assistenziali;999;Altri assegni e sussidi assistenziali;04-05-2017;
158;15;0;"720,00";"11.520,00";OMESSO NOMINATIVO NEL RISPETTO DELLA NORMATIVA SULLA PROTEZIONE DATI PERSONALI; ;"COMUNI DI ARSIERO, COGOLLO DEL CENGIO, LAGHI, LASTEBASSE, PEDEMONTE, TONEZZA DEL CIMONE, VALDASTICO E VELO D'ASTICO: IMPEGNATIVA DI CURA DOMICILIARE (ICDb) SECONDO SEMESTRE 2016. IMPEGNO DI SPESA E LIQUIDAZIONE BENEFICIARI INDIVIDUATI DALLA REGIONE V";04-05-2017;15150;0;36;1;Spese correnti;4;Trasferimenti correnti;2;Trasferimenti correnti a Famiglie;2;Interventi assistenziali;999;Altri assegni e sussidi assistenziali;04-05-2017;
158;16;0;"720,00";"11.520,00";OMESSO NOMINATIVO NEL RISPETTO DELLA NORMATIVA SULLA PROTEZIONE DATI PERSONALI; ;"COMUNI DI ARSIERO, COGOLLO DEL CENGIO, LAGHI, LASTEBASSE, PEDEMONTE, TONEZZA DEL CIMONE, VALDASTICO E VELO D'ASTICO: IMPEGNATIVA DI CURA DOMICILIARE (ICDb) SECONDO SEMESTRE 2016. IMPEGNO DI SPESA E LIQUIDAZIONE BENEFICIARI INDIVIDUATI DALLA REGIONE V";04-05-2017;15150;0;36;1;Spese correnti;4;Trasferimenti correnti;2;Trasferimenti correnti a Famiglie;2;Interventi assistenziali;999;Altri assegni e sussidi assistenziali;04-05-2017;
158;17;0;"720,00";"11.520,00";OMESSO NOMINATIVO NEL RISPETTO DELLA NORMATIVA SULLA PROTEZIONE DATI PERSONALI; ;"COMUNI DI ARSIERO, COGOLLO DEL CENGIO, LAGHI, LASTEBASSE, PEDEMONTE, TONEZZA DEL CIMONE, VALDASTICO E VELO D'ASTICO: IMPEGNATIVA DI CURA DOMICILIARE (ICDb) SECONDO SEMESTRE 2016. IMPEGNO DI SPESA E LIQUIDAZIONE BENEFICIARI INDIVIDUATI DALLA REGIONE V";04-05-2017;15150;0;36;1;Spese correnti;4;Trasferimenti correnti;2;Trasferimenti correnti a Famiglie;2;Interventi assistenziali;999;Altri assegni e sussidi assistenziali;04-05-2017;
158;18;0;"720,00";"11.520,00";OMESSO NOMINATIVO NEL RISPETTO DELLA NORMATIVA SULLA PROTEZIONE DATI PERSONALI; ;"COMUNI DI ARSIERO, COGOLLO DEL CENGIO, LAGHI, LASTEBASSE, PEDEMONTE, TONEZZA DEL CIMONE, VALDASTICO E VELO D'ASTICO: IMPEGNATIVA DI CURA DOMICILIARE (ICDb) SECONDO SEMESTRE 2016. IMPEGNO DI SPESA E LIQUIDAZIONE BENEFICIARI INDIVIDUATI DALLA REGIONE V";04-05-2017;15150;0;36;1;Spese correnti;4;Trasferimenti correnti;2;Trasferimenti correnti a Famiglie;2;Interventi assistenziali;999;Altri assegni e sussidi assistenziali;04-05-2017;
159;1;0;"720,00";"5.280,00";OMESSO NOMINATIVO NEL RISPETTO DELLA NORMATIVA SULLA PROTEZIONE DATI PERSONALI; ;"COMUNI DI ARSIERO, COGOLLO DEL CENGIO, LAGHI, LASTEBASSE, PEDEMONTE, TONEZZA DEL CIMONE, VALDASTICO E VELO D'ASTICO: IMPEGNATIVA DI CURA DOMICILIARE (ICDb) SECONDO SEMESTRE 2016. IMPEGNO DI SPESA E LIQUIDAZIONE BENEFICIARI INDIVIDUATI DALLA REGIONE V";04-05-2017;15150;0;36;1;Spese correnti;4;Trasferimenti correnti;2;Trasferimenti correnti a Famiglie;2;Interventi assistenziali;999;Altri assegni e sussidi assistenziali;04-05-2017;
159;2;0;"720,00";"5.280,00";OMESSO NOMINATIVO NEL RISPETTO DELLA NORMATIVA SULLA PROTEZIONE DATI PERSONALI; ;"COMUNI DI ARSIERO, COGOLLO DEL CENGIO, LAGHI, LASTEBASSE, PEDEMONTE, TONEZZA DEL CIMONE, VALDASTICO E VELO D'ASTICO: IMPEGNATIVA DI CURA DOMICILIARE (ICDb) SECONDO SEMESTRE 2016. IMPEGNO DI SPESA E LIQUIDAZIONE BENEFICIARI INDIVIDUATI DALLA REGIONE V";04-05-2017;15150;0;36;1;Spese correnti;4;Trasferimenti correnti;2;Trasferimenti correnti a Famiglie;2;Interventi assistenziali;999;Altri assegni e sussidi assistenziali;04-05-2017;
159;3;0;"720,00";"5.280,00";OMESSO NOMINATIVO NEL RISPETTO DELLA NORMATIVA SULLA PROTEZIONE DATI PERSONALI; ;"COMUNI DI ARSIERO, COGOLLO DEL CENGIO, LAGHI, LASTEBASSE, PEDEMONTE, TONEZZA DEL CIMONE, VALDASTICO E VELO D'ASTICO: IMPEGNATIVA DI CURA DOMICILIARE (ICDb) SECONDO SEMESTRE 2016. IMPEGNO DI SPESA E LIQUIDAZIONE BENEFICIARI INDIVIDUATI DALLA REGIONE V";04-05-2017;15150;0;36;1;Spese correnti;4;Trasferimenti correnti;2;Trasferimenti correnti a Famiglie;2;Interventi assistenziali;999;Altri assegni e sussidi assistenziali;04-05-2017;
159;4;0;"240,00";"5.280,00";OMESSO NOMINATIVO NEL RISPETTO DELLA NORMATIVA SULLA PROTEZIONE DATI PERSONALI; ;"COMUNI DI ARSIERO, COGOLLO DEL CENGIO, LAGHI, LASTEBASSE, PEDEMONTE, TONEZZA DEL CIMONE, VALDASTICO E VELO D'ASTICO: IMPEGNATIVA DI CURA DOMICILIARE (ICDb) SECONDO SEMESTRE 2016. IMPEGNO DI SPESA E LIQUIDAZIONE BENEFICIARI INDIVIDUATI DALLA REGIONE V";04-05-2017;15150;0;36;1;Spese correnti;4;Trasferimenti correnti;2;Trasferimenti correnti a Famiglie;2;Interventi assistenziali;999;Altri assegni e sussidi assistenziali;04-05-2017;
159;5;0;"720,00";"5.280,00";OMESSO NOMINATIVO NEL RISPETTO DELLA NORMATIVA SULLA PROTEZIONE DATI PERSONALI; ;"COMUNI DI ARSIERO, COGOLLO DEL CENGIO, LAGHI, LASTEBASSE, PEDEMONTE, TONEZZA DEL CIMONE, VALDASTICO E VELO D'ASTICO: IMPEGNATIVA DI CURA DOMICILIARE (ICDb) SECONDO SEMESTRE 2016. IMPEGNO DI SPESA E LIQUIDAZIONE BENEFICIARI INDIVIDUATI DALLA REGIONE V";04-05-2017;15150;0;36;1;Spese correnti;4;Trasferimenti correnti;2;Trasferimenti correnti a Famiglie;2;Interventi assistenziali;999;Altri assegni e sussidi assistenziali;04-05-2017;
159;6;0;"720,00";"5.280,00";OMESSO NOMINATIVO NEL RISPETTO DELLA NORMATIVA SULLA PROTEZIONE DATI PERSONALI; ;"COMUNI DI ARSIERO, COGOLLO DEL CENGIO, LAGHI, LASTEBASSE, PEDEMONTE, TONEZZA DEL CIMONE, VALDASTICO E VELO D'ASTICO: IMPEGNATIVA DI CURA DOMICILIARE (ICDb) SECONDO SEMESTRE 2016. IMPEGNO DI SPESA E LIQUIDAZIONE BENEFICIARI INDIVIDUATI DALLA REGIONE V";04-05-2017;15150;0;36;1;Spese correnti;4;Trasferimenti correnti;2;Trasferimenti correnti a Famiglie;2;Interventi assistenziali;999;Altri assegni e sussidi assistenziali;04-05-2017;
159;7;0;"720,00";"5.280,00";OMESSO NOMINATIVO NEL RISPETTO DELLA NORMATIVA SULLA PROTEZIONE DATI PERSONALI; ;"COMUNI DI ARSIERO, COGOLLO DEL CENGIO, LAGHI, LASTEBASSE, PEDEMONTE, TONEZZA DEL CIMONE, VALDASTICO E VELO D'ASTICO: IMPEGNATIVA DI CURA DOMICILIARE (ICDb) SECONDO SEMESTRE 2016. IMPEGNO DI SPESA E LIQUIDAZIONE BENEFICIARI INDIVIDUATI DALLA REGIONE V";04-05-2017;15150;0;36;1;Spese correnti;4;Trasferimenti correnti;2;Trasferimenti correnti a Famiglie;2;Interventi assistenziali;999;Altri assegni e sussidi assistenziali;04-05-2017;
159;8;0;"720,00";"5.280,00";OMESSO NOMINATIVO NEL RISPETTO DELLA NORMATIVA SULLA PROTEZIONE DATI PERSONALI; ;"COMUNI DI ARSIERO, COGOLLO DEL CENGIO, LAGHI, LASTEBASSE, PEDEMONTE, TONEZZA DEL CIMONE, VALDASTICO E VELO D'ASTICO: IMPEGNATIVA DI CURA DOMICILIARE (ICDb) SECONDO SEMESTRE 2016. IMPEGNO DI SPESA E LIQUIDAZIONE BENEFICIARI INDIVIDUATI DALLA REGIONE V";04-05-2017;15150;0;36;1;Spese correnti;4;Trasferimenti correnti;2;Trasferimenti correnti a Famiglie;2;Interventi assistenziali;999;Altri assegni e sussidi assistenziali;04-05-2017;
160;1;0;"720,00";"4.080,00";OMESSO NOMINATIVO NEL RISPETTO DELLA NORMATIVA SULLA PROTEZIONE DATI PERSONALI; ;"COMUNI DI ARSIERO, COGOLLO DEL CENGIO, LAGHI, LASTEBASSE, PEDEMONTE, TONEZZA DEL CIMONE, VALDASTICO E VELO D'ASTICO: IMPEGNATIVA DI CURA DOMICILIARE (ICDb) SECONDO SEMESTRE 2016. IMPEGNO DI SPESA E LIQUIDAZIONE BENEFICIARI INDIVIDUATI DALLA REGIONE V";04-05-2017;15150;0;36;1;Spese correnti;4;Trasferimenti correnti;2;Trasferimenti correnti a Famiglie;2;Interventi assistenziali;999;Altri assegni e sussidi assistenziali;04-05-2017;
160;2;0;"720,00";"4.080,00";OMESSO NOMINATIVO NEL RISPETTO DELLA NORMATIVA SULLA PROTEZIONE DATI PERSONALI; ;"COMUNI DI ARSIERO, COGOLLO DEL CENGIO, LAGHI, LASTEBASSE, PEDEMONTE, TONEZZA DEL CIMONE, VALDASTICO E VELO D'ASTICO: IMPEGNATIVA DI CURA DOMICILIARE (ICDb) SECONDO SEMESTRE 2016. IMPEGNO DI SPESA E LIQUIDAZIONE BENEFICIARI INDIVIDUATI DALLA REGIONE V";04-05-2017;15150;0;36;1;Spese correnti;4;Trasferimenti correnti;2;Trasferimenti correnti a Famiglie;2;Interventi assistenziali;999;Altri assegni e sussidi assistenziali;04-05-2017;
160;3;0;"720,00";"4.080,00";OMESSO NOMINATIVO NEL RISPETTO DELLA NORMATIVA SULLA PROTEZIONE DATI PERSONALI; ;"COMUNI DI ARSIERO, COGOLLO DEL CENGIO, LAGHI, LASTEBASSE, PEDEMONTE, TONEZZA DEL CIMONE, VALDASTICO E VELO D'ASTICO: IMPEGNATIVA DI CURA DOMICILIARE (ICDb) SECONDO SEMESTRE 2016. IMPEGNO DI SPESA E LIQUIDAZIONE BENEFICIARI INDIVIDUATI DALLA REGIONE V";04-05-2017;15150;0;36;1;Spese correnti;4;Trasferimenti correnti;2;Trasferimenti correnti a Famiglie;2;Interventi assistenziali;999;Altri assegni e sussidi assistenziali;04-05-2017;
160;4;0;"720,00";"4.080,00";OMESSO NOMINATIVO NEL RISPETTO DELLA NORMATIVA SULLA PROTEZIONE DATI PERSONALI; ;"COMUNI DI ARSIERO, COGOLLO DEL CENGIO, LAGHI, LASTEBASSE, PEDEMONTE, TONEZZA DEL CIMONE, VALDASTICO E VELO D'ASTICO: IMPEGNATIVA DI CURA DOMICILIARE (ICDb) SECONDO SEMESTRE 2016. IMPEGNO DI SPESA E LIQUIDAZIONE BENEFICIARI INDIVIDUATI DALLA REGIONE V";04-05-2017;15150;0;36;1;Spese correnti;4;Trasferimenti correnti;2;Trasferimenti correnti a Famiglie;2;Interventi assistenziali;999;Altri assegni e sussidi assistenziali;04-05-2017;
160;5;0;"480,00";"4.080,00";OMESSO NOMINATIVO NEL RISPETTO DELLA NORMATIVA SULLA PROTEZIONE DATI PERSONALI; ;"COMUNI DI ARSIERO, COGOLLO DEL CENGIO, LAGHI, LASTEBASSE, PEDEMONTE, TONEZZA DEL CIMONE, VALDASTICO E VELO D'ASTICO: IMPEGNATIVA DI CURA DOMICILIARE (ICDb) SECONDO SEMESTRE 2016. IMPEGNO DI SPESA E LIQUIDAZIONE BENEFICIARI INDIVIDUATI DALLA REGIONE V";04-05-2017;15150;0;36;1;Spese correnti;4;Trasferimenti correnti;2;Trasferimenti correnti a Famiglie;2;Interventi assistenziali;999;Altri assegni e sussidi assistenziali;04-05-2017;
160;6;0;"720,00";"4.080,00";OMESSO NOMINATIVO NEL RISPETTO DELLA NORMATIVA SULLA PROTEZIONE DATI PERSONALI; ;"COMUNI DI ARSIERO, COGOLLO DEL CENGIO, LAGHI, LASTEBASSE, PEDEMONTE, TONEZZA DEL CIMONE, VALDASTICO E VELO D'ASTICO: IMPEGNATIVA DI CURA DOMICILIARE (ICDb) SECONDO SEMESTRE 2016. IMPEGNO DI SPESA E LIQUIDAZIONE BENEFICIARI INDIVIDUATI DALLA REGIONE V";04-05-2017;15150;0;36;1;Spese correnti;4;Trasferimenti correnti;2;Trasferimenti correnti a Famiglie;2;Interventi assistenziali;999;Altri assegni e sussidi assistenziali;04-05-2017;
161;1;0;"720,00";"3.120,00";OMESSO NOMINATIVO NEL RISPETTO DELLA NORMATIVA SULLA PROTEZIONE DATI PERSONALI; ;"COMUNI DI ARSIERO, COGOLLO DEL CENGIO, LAGHI, LASTEBASSE, PEDEMONTE, TONEZZA DEL CIMONE, VALDASTICO E VELO D'ASTICO: IMPEGNATIVA DI CURA DOMICILIARE (ICDb) SECONDO SEMESTRE 2016. IMPEGNO DI SPESA E LIQUIDAZIONE BENEFICIARI INDIVIDUATI DALLA REGIONE V";04-05-2017;15150;0;36;1;Spese correnti;4;Trasferimenti correnti;2;Trasferimenti correnti a Famiglie;2;Interventi assistenziali;999;Altri assegni e sussidi assistenziali;04-05-2017;
161;2;0;"720,00";"3.120,00";OMESSO NOMINATIVO NEL RISPETTO DELLA NORMATIVA SULLA PROTEZIONE DATI PERSONALI; ;"COMUNI DI ARSIERO, COGOLLO DEL CENGIO, LAGHI, LASTEBASSE, PEDEMONTE, TONEZZA DEL CIMONE, VALDASTICO E VELO D'ASTICO: IMPEGNATIVA DI CURA DOMICILIARE (ICDb) SECONDO SEMESTRE 2016. IMPEGNO DI SPESA E LIQUIDAZIONE BENEFICIARI INDIVIDUATI DALLA REGIONE V";04-05-2017;15150;0;36;1;Spese correnti;4;Trasferimenti correnti;2;Trasferimenti correnti a Famiglie;2;Interventi assistenziali;999;Altri assegni e sussidi assistenziali;04-05-2017;
161;3;0;"360,00";"3.120,00";OMESSO NOMINATIVO NEL RISPETTO DELLA NORMATIVA SULLA PROTEZIONE DATI PERSONALI; ;"COMUNI DI ARSIERO, COGOLLO DEL CENGIO, LAGHI, LASTEBASSE, PEDEMONTE, TONEZZA DEL CIMONE, VALDASTICO E VELO D'ASTICO: IMPEGNATIVA DI CURA DOMICILIARE (ICDb) SECONDO SEMESTRE 2016. IMPEGNO DI SPESA E LIQUIDAZIONE BENEFICIARI INDIVIDUATI DALLA REGIONE V";04-05-2017;15150;0;36;1;Spese correnti;4;Trasferimenti correnti;2;Trasferimenti correnti a Famiglie;2;Interventi assistenziali;999;Altri assegni e sussidi assistenziali;04-05-2017;
161;4;0;"720,00";"3.120,00";OMESSO NOMINATIVO NEL RISPETTO DELLA NORMATIVA SULLA PROTEZIONE DATI PERSONALI; ;"COMUNI DI ARSIERO, COGOLLO DEL CENGIO, LAGHI, LASTEBASSE, PEDEMONTE, TONEZZA DEL CIMONE, VALDASTICO E VELO D'ASTICO: IMPEGNATIVA DI CURA DOMICILIARE (ICDb) SECONDO SEMESTRE 2016. IMPEGNO DI SPESA E LIQUIDAZIONE BENEFICIARI INDIVIDUATI DALLA REGIONE V";04-05-2017;15150;0;36;1;Spese correnti;4;Trasferimenti correnti;2;Trasferimenti correnti a Famiglie;2;Interventi assistenziali;999;Altri assegni e sussidi assistenziali;04-05-2017;
161;5;0;"480,00";"3.120,00";OMESSO NOMINATIVO NEL RISPETTO DELLA NORMATIVA SULLA PROTEZIONE DATI PERSONALI; ;"COMUNI DI ARSIERO, COGOLLO DEL CENGIO, LAGHI, LASTEBASSE, PEDEMONTE, TONEZZA DEL CIMONE, VALDASTICO E VELO D'ASTICO: IMPEGNATIVA DI CURA DOMICILIARE (ICDb) SECONDO SEMESTRE 2016. IMPEGNO DI SPESA E LIQUIDAZIONE BENEFICIARI INDIVIDUATI DALLA REGIONE V";04-05-2017;15150;0;36;1;Spese correnti;4;Trasferimenti correnti;2;Trasferimenti correnti a Famiglie;2;Interventi assistenziali;999;Altri assegni e sussidi assistenziali;04-05-2017;
161;6;0;"120,00";"3.120,00";OMESSO NOMINATIVO NEL RISPETTO DELLA NORMATIVA SULLA PROTEZIONE DATI PERSONALI; ;"COMUNI DI ARSIERO, COGOLLO DEL CENGIO, LAGHI, LASTEBASSE, PEDEMONTE, TONEZZA DEL CIMONE, VALDASTICO E VELO D'ASTICO: IMPEGNATIVA DI CURA DOMICILIARE (ICDb) SECONDO SEMESTRE 2016. IMPEGNO DI SPESA E LIQUIDAZIONE BENEFICIARI INDIVIDUATI DALLA REGIONE V";04-05-2017;15150;0;36;1;Spese correnti;4;Trasferimenti correnti;2;Trasferimenti correnti a Famiglie;2;Interventi assistenziali;999;Altri assegni e sussidi assistenziali;04-05-2017;
162;1;0;"720,00";"6.240,00";OMESSO NOMINATIVO NEL RISPETTO DELLA NORMATIVA SULLA PROTEZIONE DATI PERSONALI; ;"COMUNI DI ARSIERO, COGOLLO DEL CENGIO, LAGHI, LASTEBASSE, PEDEMONTE, TONEZZA DEL CIMONE, VALDASTICO E VELO D'ASTICO: IMPEGNATIVA DI CURA DOMICILIARE (ICDb) SECONDO SEMESTRE 2016. IMPEGNO DI SPESA E LIQUIDAZIONE BENEFICIARI INDIVIDUATI DALLA REGIONE V";04-05-2017;15150;0;36;1;Spese correnti;4;Trasferimenti correnti;2;Trasferimenti correnti a Famiglie;2;Interventi assistenziali;999;Altri assegni e sussidi assistenziali;04-05-2017;
162;2;0;"720,00";"6.240,00";OMESSO NOMINATIVO NEL RISPETTO DELLA NORMATIVA SULLA PROTEZIONE DATI PERSONALI; ;"COMUNI DI ARSIERO, COGOLLO DEL CENGIO, LAGHI, LASTEBASSE, PEDEMONTE, TONEZZA DEL CIMONE, VALDASTICO E VELO D'ASTICO: IMPEGNATIVA DI CURA DOMICILIARE (ICDb) SECONDO SEMESTRE 2016. IMPEGNO DI SPESA E LIQUIDAZIONE BENEFICIARI INDIVIDUATI DALLA REGIONE V";04-05-2017;15150;0;36;1;Spese correnti;4;Trasferimenti correnti;2;Trasferimenti correnti a Famiglie;2;Interventi assistenziali;999;Altri assegni e sussidi assistenziali;04-05-2017;
162;3;0;"720,00";"6.240,00";OMESSO NOMINATIVO NEL RISPETTO DELLA NORMATIVA SULLA PROTEZIONE DATI PERSONALI; ;"COMUNI DI ARSIERO, COGOLLO DEL CENGIO, LAGHI, LASTEBASSE, PEDEMONTE, TONEZZA DEL CIMONE, VALDASTICO E VELO D'ASTICO: IMPEGNATIVA DI CURA DOMICILIARE (ICDb) SECONDO SEMESTRE 2016. IMPEGNO DI SPESA E LIQUIDAZIONE BENEFICIARI INDIVIDUATI DALLA REGIONE V";04-05-2017;15150;0;36;1;Spese correnti;4;Trasferimenti correnti;2;Trasferimenti correnti a Famiglie;2;Interventi assistenziali;999;Altri assegni e sussidi assistenziali;04-05-2017;
162;4;0;"720,00";"6.240,00";OMESSO NOMINATIVO NEL RISPETTO DELLA NORMATIVA SULLA PROTEZIONE DATI PERSONALI; ;"COMUNI DI ARSIERO, COGOLLO DEL CENGIO, LAGHI, LASTEBASSE, PEDEMONTE, TONEZZA DEL CIMONE, VALDASTICO E VELO D'ASTICO: IMPEGNATIVA DI CURA DOMICILIARE (ICDb) SECONDO SEMESTRE 2016. IMPEGNO DI SPESA E LIQUIDAZIONE BENEFICIARI INDIVIDUATI DALLA REGIONE V";04-05-2017;15150;0;36;1;Spese correnti;4;Trasferimenti correnti;2;Trasferimenti correnti a Famiglie;2;Interventi assistenziali;999;Altri assegni e sussidi assistenziali;04-05-2017;
162;5;0;"720,00";"6.240,00";OMESSO NOMINATIVO NEL RISPETTO DELLA NORMATIVA SULLA PROTEZIONE DATI PERSONALI; ;"COMUNI DI ARSIERO, COGOLLO DEL CENGIO, LAGHI, LASTEBASSE, PEDEMONTE, TONEZZA DEL CIMONE, VALDASTICO E VELO D'ASTICO: IMPEGNATIVA DI CURA DOMICILIARE (ICDb) SECONDO SEMESTRE 2016. IMPEGNO DI SPESA E LIQUIDAZIONE BENEFICIARI INDIVIDUATI DALLA REGIONE V";04-05-2017;15150;0;36;1;Spese correnti;4;Trasferimenti correnti;2;Trasferimenti correnti a Famiglie;2;Interventi assistenziali;999;Altri assegni e sussidi assistenziali;04-05-2017;
162;6;0;"720,00";"6.240,00";OMESSO NOMINATIVO NEL RISPETTO DELLA NORMATIVA SULLA PROTEZIONE DATI PERSONALI; ;"COMUNI DI ARSIERO, COGOLLO DEL CENGIO, LAGHI, LASTEBASSE, PEDEMONTE, TONEZZA DEL CIMONE, VALDASTICO E VELO D'ASTICO: IMPEGNATIVA DI CURA DOMICILIARE (ICDb) SECONDO SEMESTRE 2016. IMPEGNO DI SPESA E LIQUIDAZIONE BENEFICIARI INDIVIDUATI DALLA REGIONE V";04-05-2017;15150;0;36;1;Spese correnti;4;Trasferimenti correnti;2;Trasferimenti correnti a Famiglie;2;Interventi assistenziali;999;Altri assegni e sussidi assistenziali;04-05-2017;
162;7;0;"240,00";"6.240,00";OMESSO NOMINATIVO NEL RISPETTO DELLA NORMATIVA SULLA PROTEZIONE DATI PERSONALI; ;"COMUNI DI ARSIERO, COGOLLO DEL CENGIO, LAGHI, LASTEBASSE, PEDEMONTE, TONEZZA DEL CIMONE, VALDASTICO E VELO D'ASTICO: IMPEGNATIVA DI CURA DOMICILIARE (ICDb) SECONDO SEMESTRE 2016. IMPEGNO DI SPESA E LIQUIDAZIONE BENEFICIARI INDIVIDUATI DALLA REGIONE V";04-05-2017;15150;0;36;1;Spese correnti;4;Trasferimenti correnti;2;Trasferimenti correnti a Famiglie;2;Interventi assistenziali;999;Altri assegni e sussidi assistenziali;04-05-2017;
162;8;0;"240,00";"6.240,00";OMESSO NOMINATIVO NEL RISPETTO DELLA NORMATIVA SULLA PROTEZIONE DATI PERSONALI; ;"COMUNI DI ARSIERO, COGOLLO DEL CENGIO, LAGHI, LASTEBASSE, PEDEMONTE, TONEZZA DEL CIMONE, VALDASTICO E VELO D'ASTICO: IMPEGNATIVA DI CURA DOMICILIARE (ICDb) SECONDO SEMESTRE 2016. IMPEGNO DI SPESA E LIQUIDAZIONE BENEFICIARI INDIVIDUATI DALLA REGIONE V";04-05-2017;15150;0;36;1;Spese correnti;4;Trasferimenti correnti;2;Trasferimenti correnti a Famiglie;2;Interventi assistenziali;999;Altri assegni e sussidi assistenziali;04-05-2017;
162;9;0;"720,00";"6.240,00";OMESSO NOMINATIVO NEL RISPETTO DELLA NORMATIVA SULLA PROTEZIONE DATI PERSONALI; ;"COMUNI DI ARSIERO, COGOLLO DEL CENGIO, LAGHI, LASTEBASSE, PEDEMONTE, TONEZZA DEL CIMONE, VALDASTICO E VELO D'ASTICO: IMPEGNATIVA DI CURA DOMICILIARE (ICDb) SECONDO SEMESTRE 2016. IMPEGNO DI SPESA E LIQUIDAZIONE BENEFICIARI INDIVIDUATI DALLA REGIONE V";04-05-2017;15150;0;36;1;Spese correnti;4;Trasferimenti correnti;2;Trasferimenti correnti a Famiglie;2;Interventi assistenziali;999;Altri assegni e sussidi assistenziali;04-05-2017;
162;10;0;"720,00";"6.240,00";OMESSO NOMINATIVO NEL RISPETTO DELLA NORMATIVA SULLA PROTEZIONE DATI PERSONALI; ;"COMUNI DI ARSIERO, COGOLLO DEL CENGIO, LAGHI, LASTEBASSE, PEDEMONTE, TONEZZA DEL CIMONE, VALDASTICO E VELO D'ASTICO: IMPEGNATIVA DI CURA DOMICILIARE (ICDb) SECONDO SEMESTRE 2016. IMPEGNO DI SPESA E LIQUIDAZIONE BENEFICIARI INDIVIDUATI DALLA REGIONE V";04-05-2017;15150;0;36;1;Spese correnti;4;Trasferimenti correnti;2;Trasferimenti correnti a Famiglie;2;Interventi assistenziali;999;Altri assegni e sussidi assistenziali;04-05-2017;
163;1;0;"720,00";"4.800,00";OMESSO NOMINATIVO NEL RISPETTO DELLA NORMATIVA SULLA PROTEZIONE DATI PERSONALI; ;"COMUNI DI ARSIERO, COGOLLO DEL CENGIO, LAGHI, LASTEBASSE, PEDEMONTE, TONEZZA DEL CIMONE, VALDASTICO E VELO D'ASTICO: IMPEGNATIVA DI CURA DOMICILIARE (ICDb) SECONDO SEMESTRE 2016. IMPEGNO DI SPESA E LIQUIDAZIONE BENEFICIARI INDIVIDUATI DALLA REGIONE V";04-05-2017;15150;0;36;1;Spese correnti;4;Trasferimenti correnti;2;Trasferimenti correnti a Famiglie;2;Interventi assistenziali;999;Altri assegni e sussidi assistenziali;04-05-2017;
163;2;0;"720,00";"4.800,00";OMESSO NOMINATIVO NEL RISPETTO DELLA NORMATIVA SULLA PROTEZIONE DATI PERSONALI; ;"COMUNI DI ARSIERO, COGOLLO DEL CENGIO, LAGHI, LASTEBASSE, PEDEMONTE, TONEZZA DEL CIMONE, VALDASTICO E VELO D'ASTICO: IMPEGNATIVA DI CURA DOMICILIARE (ICDb) SECONDO SEMESTRE 2016. IMPEGNO DI SPESA E LIQUIDAZIONE BENEFICIARI INDIVIDUATI DALLA REGIONE V";04-05-2017;15150;0;36;1;Spese correnti;4;Trasferimenti correnti;2;Trasferimenti correnti a Famiglie;2;Interventi assistenziali;999;Altri assegni e sussidi assistenziali;04-05-2017;
163;3;0;"120,00";"4.800,00";OMESSO NOMINATIVO NEL RISPETTO DELLA NORMATIVA SULLA PROTEZIONE DATI PERSONALI; ;"COMUNI DI ARSIERO, COGOLLO DEL CENGIO, LAGHI, LASTEBASSE, PEDEMONTE, TONEZZA DEL CIMONE, VALDASTICO E VELO D'ASTICO: IMPEGNATIVA DI CURA DOMICILIARE (ICDb) SECONDO SEMESTRE 2016. IMPEGNO DI SPESA E LIQUIDAZIONE BENEFICIARI INDIVIDUATI DALLA REGIONE V";04-05-2017;15150;0;36;1;Spese correnti;4;Trasferimenti correnti;2;Trasferimenti correnti a Famiglie;2;Interventi assistenziali;999;Altri assegni e sussidi assistenziali;04-05-2017;
163;4;0;"720,00";"4.800,00";OMESSO NOMINATIVO NEL RISPETTO DELLA NORMATIVA SULLA PROTEZIONE DATI PERSONALI; ;"COMUNI DI ARSIERO, COGOLLO DEL CENGIO, LAGHI, LASTEBASSE, PEDEMONTE, TONEZZA DEL CIMONE, VALDASTICO E VELO D'ASTICO: IMPEGNATIVA DI CURA DOMICILIARE (ICDb) SECONDO SEMESTRE 2016. IMPEGNO DI SPESA E LIQUIDAZIONE BENEFICIARI INDIVIDUATI DALLA REGIONE V";04-05-2017;15150;0;36;1;Spese correnti;4;Trasferimenti correnti;2;Trasferimenti correnti a Famiglie;2;Interventi assistenziali;999;Altri assegni e sussidi assistenziali;04-05-2017;
163;5;0;"720,00";"4.800,00";OMESSO NOMINATIVO NEL RISPETTO DELLA NORMATIVA SULLA PROTEZIONE DATI PERSONALI; ;"COMUNI DI ARSIERO, COGOLLO DEL CENGIO, LAGHI, LASTEBASSE, PEDEMONTE, TONEZZA DEL CIMONE, VALDASTICO E VELO D'ASTICO: IMPEGNATIVA DI CURA DOMICILIARE (ICDb) SECONDO SEMESTRE 2016. IMPEGNO DI SPESA E LIQUIDAZIONE BENEFICIARI INDIVIDUATI DALLA REGIONE V";04-05-2017;15150;0;36;1;Spese correnti;4;Trasferimenti correnti;2;Trasferimenti correnti a Famiglie;2;Interventi assistenziali;999;Altri assegni e sussidi assistenziali;04-05-2017;
163;6;0;"720,00";"4.800,00";OMESSO NOMINATIVO NEL RISPETTO DELLA NORMATIVA SULLA PROTEZIONE DATI PERSONALI; ;"COMUNI DI ARSIERO, COGOLLO DEL CENGIO, LAGHI, LASTEBASSE, PEDEMONTE, TONEZZA DEL CIMONE, VALDASTICO E VELO D'ASTICO: IMPEGNATIVA DI CURA DOMICILIARE (ICDb) SECONDO SEMESTRE 2016. IMPEGNO DI SPESA E LIQUIDAZIONE BENEFICIARI INDIVIDUATI DALLA REGIONE V";04-05-2017;15150;0;36;1;Spese correnti;4;Trasferimenti correnti;2;Trasferimenti correnti a Famiglie;2;Interventi assistenziali;999;Altri assegni e sussidi assistenziali;04-05-2017;
163;7;0;"360,00";"4.800,00";OMESSO NOMINATIVO NEL RISPETTO DELLA NORMATIVA SULLA PROTEZIONE DATI PERSONALI; ;"COMUNI DI ARSIERO, COGOLLO DEL CENGIO, LAGHI, LASTEBASSE, PEDEMONTE, TONEZZA DEL CIMONE, VALDASTICO E VELO D'ASTICO: IMPEGNATIVA DI CURA DOMICILIARE (ICDb) SECONDO SEMESTRE 2016. IMPEGNO DI SPESA E LIQUIDAZIONE BENEFICIARI INDIVIDUATI DALLA REGIONE V";04-05-2017;15150;0;36;1;Spese correnti;4;Trasferimenti correnti;2;Trasferimenti correnti a Famiglie;2;Interventi assistenziali;999;Altri assegni e sussidi assistenziali;04-05-2017;
163;8;0;"720,00";"4.800,00";OMESSO NOMINATIVO NEL RISPETTO DELLA NORMATIVA SULLA PROTEZIONE DATI PERSONALI; ;"COMUNI DI ARSIERO, COGOLLO DEL CENGIO, LAGHI, LASTEBASSE, PEDEMONTE, TONEZZA DEL CIMONE, VALDASTICO E VELO D'ASTICO: IMPEGNATIVA DI CURA DOMICILIARE (ICDb) SECONDO SEMESTRE 2016. IMPEGNO DI SPESA E LIQUIDAZIONE BENEFICIARI INDIVIDUATI DALLA REGIONE V";04-05-2017;15150;0;36;1;Spese correnti;4;Trasferimenti correnti;2;Trasferimenti correnti a Famiglie;2;Interventi assistenziali;999;Altri assegni e sussidi assistenziali;04-05-2017;
164;1;0;"1.478,40";"1.478,40";LA LOCOMOTIVA COOPERATIVA SOCIALE ONLUS;Z31197AA89;SALDO Fatt.n. P/84  del 16/03/2017 SERVIZIO IMPIEGATIZIO DI SEGRETERIA FEBBRAIO 2017.;04-05-2017;15119;0;105;1;Spese correnti;3;Acquisto di beni e servizi;2;Acquisto di servizi;18;Servizi sanitari;999;Altri acquisti di servizi sanitari n.a.c.;04-05-2017;
165;1;0;"5.930,02";"5.930,02";ACCATRE S.R.L.;ZDB1C9689A;SALDO Fatt.n. 1/170260  del 14/03/2017 CONVENZIONE SERVIZI IMMEDIA ANNO 2017.;04-05-2017;11245;0;28;1;Spese correnti;3;Acquisto di beni e servizi;2;Acquisto di servizi;13;Servizi ausiliari per il funzionamento dell'ente;999;Altri servizi ausiliari n.a.c.;04-05-2017;
166;1;0;"14.997,44";"14.997,44";LA LOCOMOTIVA COOPERATIVA SOCIALE ONLUS;6257521DAC;SALDO Fatt.n. P/82  del 16/03/2017 ASSISTENZA DOMICILIARE GENNAIO 2017.;04-05-2017;15115;0;29;1;Spese correnti;3;Acquisto di beni e servizi;2;Acquisto di servizi;18;Servizi sanitari;14;Acquisti di servizi socio sanitari a rilevanza sanitaria;04-05-2017;
167;1;0;"2.235,72";"2.235,72";LA LOCOMOTIVA COOPERATIVA SOCIALE ONLUS;6257521DAC;SALDO Fatt.n. P/83  del 16/03/2017 CONSEGNA PASTI GENNAIO 2017.;04-05-2017;15125;0;30;1;Spese correnti;3;Acquisto di beni e servizi;2;Acquisto di servizi;14;Servizi di ristorazione;999;Altri servizi di ristorazione;04-05-2017;
168;1;0;"1.326,06";"1.326,06";COMUNE DI ARSIERO; ;SALDO Fatt.n. 6/B/3  del 28/02/2017 FORNITURA PASTI CALDI DA CONSEGNARE A DOMICILIO PERSONE ANZIANE MESE DI FEBBRAIO 2017;04-05-2017;15125;0;30;1;Spese correnti;3;Acquisto di beni e servizi;2;Acquisto di servizi;14;Servizi di ristorazione;999;Altri servizi di ristorazione;04-05-2017;
169;1;0;"1.159,00";"1.159,00";STENGHELE GIULIA;ZB51D762E0;SALDO Fatt.n. 2 PA  del 10/03/2017 FORNITURA BLOCCHETTI PER PERMESSI FUNGHI.;04-05-2017;11190;0;6;1;Spese correnti;3;Acquisto di beni e servizi;1;Acquisto di beni;2;Altri beni di consumo;14;Stampati specialistici;04-05-2017;
170;1;0;"6.605,53";"6.605,53";COMUNE DI ARSIERO; ;SISTEMAZIONE POZZA E MANUTENZIONE AREA ESTERNA MALGA MELEGNON - LIQUIDAZIONE CONTRIBUTO.;04-05-2017;26125;0;53;2;Spese in conto capitale;3;Contributi agli investimenti;3;Contributi agli investimenti a Imprese;3;Contributi agli investimenti a altre Imprese;999;Contributi agli investimenti a altre Imprese;04-05-2017;
171;1;0;"9.808,21";"9.808,21";COMUNE DI ARSIERO; ;REALIZZAZIONE DEL PADDOCK DI MALGA VALBONA - LIQUIDAZIONE CONTRIBUTO.;04-05-2017;26155;0;126;2;Spese in conto capitale;5;Altre spese in conto capitale;99;Altre spese in conto capitale n.a.c.;99;Altre spese in conto capitale n.a.c.;999;Altre spese in conto capitale n.a.c.;04-05-2017;
172;1;0;"88,00";"88,00";ACCATRE S.R.L.; ;RESTITUZIONE MAGGIORE IMPORTO ERRONEAMENTE INTROITATO DALL'ENTE  (CFR NOTA DI CREDITO 1/160353/2016 DITTA ACCATRE SRL);05-05-2017;11190;0;0;1;Spese correnti;3;Acquisto di beni e servizi;1;Acquisto di beni;2;Altri beni di consumo;6;Materiale informatico;05-05-2017;
174;1;0;"2.006,07";"2.006,07";ASSITECA SPA;ZE01E387C4;POLIZZA ASSICURATIVA RESPONSABILITA' PATRIMONIALE (COLPA LIEVE) DELL'UNIONE MONTANA ALTO ASTICO. PERIODO APRILE 2017 - APRILE 2018. IMPEGNO DI SPESA.;05-05-2017;11210;0;23;1;Spese correnti;10;Altre spese correnti;4;Premi di assicurazione;99;Altri premi di assicurazione n.a.c.;999;Altri premi di assicurazione n.a.c.;05-05-2017;
175;1;0;"2,00";"178,17";ENI ADFIN S.P.A.;Z8819C2A81;SPESE FUNZIONAMENTO E MANUTENZIONE AUTOMEZZI SERVIZI ASSOCIATI.IMPEGNO DI SPESA ANNO 2016.;05-05-2017;11265;0;38;1;Spese correnti;3;Acquisto di beni e servizi;1;Acquisto di beni;2;Altri beni di consumo;2;"Carburanti, combustibili e lubrificanti";05-05-2017;
175;2;0;"176,17";"178,17";ENI ADFIN S.P.A.;Z8819C2A81;SALDO Fatt.n. 30122682  del 31/12/2016 FORNITURA CARBURANTI MESE DI DICEMBRE 2016.;05-05-2017;11265;0;38;1;Spese correnti;3;Acquisto di beni e servizi;1;Acquisto di beni;2;Altri beni di consumo;2;"Carburanti, combustibili e lubrificanti";05-05-2017;
176;1;0;"266,41";"266,41";ECONOMO UNIONE MONTANA; ;Rimborso bollette;09-05-2017;11190;0;42;1;Spese correnti;3;Acquisto di beni e servizi;1;Acquisto di beni;2;Altri beni di consumo;999;Altri beni e materiali di consumo n.a.c.;09-05-2017;
177;1;0;"825,58";"825,58";ECONOMO UNIONE MONTANA; ;Rimborso bollette;09-05-2017;11205;0;43;1;Spese correnti;3;Acquisto di beni e servizi;2;Acquisto di servizi;5;Utenze e canoni;999;Utenze e canoni per altri servizi n.a.c.;09-05-2017;
178;1;0;"126,46";"126,46";ECONOMO UNIONE MONTANA; ;Rimborso bollette;09-05-2017;11395;0;5;1;Spese correnti;3;Acquisto di beni e servizi;1;Acquisto di beni;2;Altri beni di consumo;999;Altri beni e materiali di consumo n.a.c.;09-05-2017;
179;1;0;"375,06";"375,06";Soenergy S.r.l.;ZE91780D56;ACCONTO Fatt.n. 171024006  del 13/02/2017 FORNITURA GAS PERIODO 31/12/2016 - 31/01/2017.;15-05-2017;11205;0;34;1;Spese correnti;3;Acquisto di beni e servizi;2;Acquisto di servizi;5;Utenze e canoni;6;Gas;15-05-2017;
180;1;0;"985,35";"985,35";Soenergy S.r.l.;ZE91780D56;SALDO Fatt.n. 171024006  del 13/02/2017 FORNITURA GAS PERIODO 31/12/2016 - 31/01/2017.;15-05-2017;11205;0;25;1;Spese correnti;3;Acquisto di beni e servizi;2;Acquisto di servizi;5;Utenze e canoni;6;Gas;15-05-2017;
181;1;0;"32,34";"32,34";AVS ALTO VICENTINO SERVIZI S.P.A.;Z1A1AE7111;SALDO Fatt.n. 2017/3000865/1  del 16/03/2017 MATRICOLA:92/085453 - INDIRIZZO FORNITURA: VIA EUROPA 22 - 36011     ARSIERO VI - PERIODO 02/12/2016 - 16/03/2017.;15-05-2017;11205;0;64;1;Spese correnti;3;Acquisto di beni e servizi;2;Acquisto di servizi;5;Utenze e canoni;5;Acqua;15-05-2017;
182;1;0;"904,95";"904,95";Soenergy S.r.l.;ZE91780D56;SALDO Fatt.n. 171047847  del 13/03/2017 FORNITURA GAS PERIODO 31/01/2017 - 28/02/2017.;15-05-2017;11205;0;25;1;Spese correnti;3;Acquisto di beni e servizi;2;Acquisto di servizi;5;Utenze e canoni;6;Gas;15-05-2017;
183;1;0;"124,11";"656,27";SERVIZIO ELETTRICO NAZIONALE SERVIZIO DI MAGGIOR TUTELA;ZC21DBF814;SALDO Fatt.n. 244402906038125  del 10/04/2017 ENERGIA ELETTRICA BIMESTRE MARZO/APRILE 2017.;15-05-2017;11205;0;13;1;Spese correnti;3;Acquisto di beni e servizi;2;Acquisto di servizi;5;Utenze e canoni;4;Energia elettrica;15-05-2017;
183;2;0;"159,06";"656,27";SERVIZIO ELETTRICO NAZIONALE SERVIZIO DI MAGGIOR TUTELA;ZC21DBF814;SALDO Fatt.n. 243404635015245  del 10/04/2017 ENERGIA ELETTRICA BIMESTRE MARZO/APRILE 2017 - LOCALITA' MONTE SUMMANO.;15-05-2017;11205;0;13;1;Spese correnti;3;Acquisto di beni e servizi;2;Acquisto di servizi;5;Utenze e canoni;4;Energia elettrica;15-05-2017;
183;3;0;"373,10";"656,27";SERVIZIO ELETTRICO NAZIONALE SERVIZIO DI MAGGIOR TUTELA;ZC21DBF814;SALDO Fatt.n. 244402906038025  del 10/04/2017 ENERGIA ELETTRICA BIMESTRE MARZO/APRILE 2017.;15-05-2017;11205;0;13;1;Spese correnti;3;Acquisto di beni e servizi;2;Acquisto di servizi;5;Utenze e canoni;4;Energia elettrica;15-05-2017;
184;1;0;"320,00";"320,00";CASA DI RIPOSO "A.ROSSI"; ;ACCONTO Fatt.n. 13/E  del 07/03/2017 CONVENZIONE SERVIZIO PRIMO SOCCORSO CRI - SERVOS DICEMBRE 2016 - GENNAIO 2017.;15-05-2017;15121;0;47;1;Spese correnti;3;Acquisto di beni e servizi;2;Acquisto di servizi;18;Servizi sanitari;999;Altri acquisti di servizi sanitari n.a.c.;15-05-2017;
185;1;0;"65,00";"65,00";CASA DI RIPOSO "A.ROSSI"; ;SALDO Fatt.n. 13/E  del 07/03/2017 CONVENZIONE SERVIZIO PRIMO SOCCORSO CRI - SERVOS DICEMBRE 2016 - GENNAIO 2017.;15-05-2017;15121;0;48;1;Spese correnti;3;Acquisto di beni e servizi;2;Acquisto di servizi;18;Servizi sanitari;999;Altri acquisti di servizi sanitari n.a.c.;15-05-2017;
186;1;0;"1.374,45";"1.374,45";LA LOCOMOTIVA COOPERATIVA SOCIALE ONLUS;Z31197AA89;ACCONTO Fatt.n. P/85  del 16/03/2017 SEGRETARIATO SOCIALE GENNAIO 2017.;15-05-2017;15119;0;105;1;Spese correnti;3;Acquisto di beni e servizi;2;Acquisto di servizi;18;Servizi sanitari;999;Altri acquisti di servizi sanitari n.a.c.;15-05-2017;
187;1;0;"1.316,70";"1.316,70";LA LOCOMOTIVA COOPERATIVA SOCIALE ONLUS;6257521DAC;SALDO Fatt.n. P/85  del 16/03/2017 SEGRETARIATO SOCIALE GENNAIO 2017.;15-05-2017;11330;0;47;1;Spese correnti;3;Acquisto di beni e servizi;2;Acquisto di servizi;99;Altri servizi;999;Altri servizi diversi n.a.c.;15-05-2017;
188;1;0;"12.424,86";"24.980,71";LA LOCOMOTIVA COOPERATIVA SOCIALE ONLUS;6257521DAC;SALDO Fatt.n. P/127  del 20/04/2017 SERVIZIO ASSISTENZA DOMICILIARE MESE DI MARZO ANNO 2017.;15-05-2017;15115;0;29;1;Spese correnti;3;Acquisto di beni e servizi;2;Acquisto di servizi;18;Servizi sanitari;14;Acquisti di servizi socio sanitari a rilevanza sanitaria;15-05-2017;
188;2;0;"12.555,85";"24.980,71";LA LOCOMOTIVA COOPERATIVA SOCIALE ONLUS;6257521DAC;SALDO Fatt.n. P/87  del 21/03/2017 SERVIZIO ASSISTENZA DOMICILIARE MESE DI FEBBRAIO ANNO 2017.;15-05-2017;15115;0;29;1;Spese correnti;3;Acquisto di beni e servizi;2;Acquisto di servizi;18;Servizi sanitari;14;Acquisti di servizi socio sanitari a rilevanza sanitaria;15-05-2017;
189;1;0;"292,80";"292,80";SIE INFORMATICA SAS;ZF01E5801E;SALDO Fatt.n. 28/P  del 26/04/2017 ACQUISTO SSD NUOVI PER PC.;15-05-2017;11190;0;33;1;Spese correnti;3;Acquisto di beni e servizi;1;Acquisto di beni;2;Altri beni di consumo;6;Materiale informatico;15-05-2017;
190;1;0;"1.372,50";"1.372,50";NEXT.ORG S.A.S. DI BARDELLI ING. ELIO & C.;Z5818ED357;SALDO Fatt.n. 26-E  del 03/04/2017 Prestazioni di Servizio Informatico e Sistemistici vs. CIG Z5818ED357;15-05-2017;11390;0;41;1;Spese correnti;3;Acquisto di beni e servizi;2;Acquisto di servizi;99;Altri servizi;999;Altri servizi diversi n.a.c.;15-05-2017;
191;1;0;"399,55";"399,55";MAGGIOLI SPA;Z6E1E0D820;SALDO Fatt.n. 0002114656  del 20/04/2017 IL PERSONALE.IT - ANNUALE - RINNOVO.;15-05-2017;11215;0;20;1;Spese correnti;3;Acquisto di beni e servizi;1;Acquisto di beni;1;"Giornali, riviste e pubblicazioni";2;Pubblicazioni;15-05-2017;
192;1;0;"317,20";"317,20";MAGGIOLI SPA;ZCA1DEBE22;SALDO Fatt.n. 0002110409  del 29/03/2017 SERVIZIO ENTI.IT FINANZA E TRIBUTI - ANNUALE - FASCIA 01 - RINNOVO.;15-05-2017;11215;0;17;1;Spese correnti;3;Acquisto di beni e servizi;1;Acquisto di beni;1;"Giornali, riviste e pubblicazioni";1;Giornali e riviste;15-05-2017;
193;1;0;"170,80";"170,80";MAGGIOLI SPA;ZCA1DEBE22;SALDO Fatt.n. 0002110410  del 29/03/2017 SERVIZIO ENTI.IT SEGRETERIA E PERSONALE - ANNUALE - FASCIA 01 - RINNOVO.;15-05-2017;11215;0;17;1;Spese correnti;3;Acquisto di beni e servizi;1;Acquisto di beni;1;"Giornali, riviste e pubblicazioni";1;Giornali e riviste;15-05-2017;
194;1;0;"1.532,79";"1.532,79";LA LOCOMOTIVA COOPERATIVA SOCIALE ONLUS;6257521DAC;ACCONTO Fatt.n. P/88  del 21/03/2017 SERVIZIO DI CONSEGNA PASTI CALDI MESE DI FEBBRAIO ANNO 2017.;15-05-2017;15125;0;30;1;Spese correnti;3;Acquisto di beni e servizi;2;Acquisto di servizi;14;Servizi di ristorazione;999;Altri servizi di ristorazione;15-05-2017;
195;1;0;"603,88";"603,88";LA LOCOMOTIVA COOPERATIVA SOCIALE ONLUS;6257521DAC;SALDO Fatt.n. P/88  del 21/03/2017 SERVIZIO DI CONSEGNA PASTI CALDI MESE DI FEBBRAIO ANNO 2017.;15-05-2017;15119;0;105;1;Spese correnti;3;Acquisto di beni e servizi;2;Acquisto di servizi;18;Servizi sanitari;999;Altri acquisti di servizi sanitari n.a.c.;15-05-2017;
196;1;0;"1.792,99";"1.792,99";LA LOCOMOTIVA COOPERATIVA SOCIALE ONLUS;6257521DAC;ACCONTO Fatt.n. P/128  del 20/04/2017 SERVIZIO DI CEONSEGNA PASTI MESE DI MARZO ANNO 2017.;15-05-2017;15125;0;30;1;Spese correnti;3;Acquisto di beni e servizi;2;Acquisto di servizi;14;Servizi di ristorazione;999;Altri servizi di ristorazione;15-05-2017;
197;1;0;"776,41";"776,41";LA LOCOMOTIVA COOPERATIVA SOCIALE ONLUS;6257521DAC;SALDO Fatt.n. P/128  del 20/04/2017 SERVIZIO DI CEONSEGNA PASTI MESE DI MARZO ANNO 2017.;15-05-2017;15119;0;105;1;Spese correnti;3;Acquisto di beni e servizi;2;Acquisto di servizi;18;Servizi sanitari;999;Altri acquisti di servizi sanitari n.a.c.;15-05-2017;
223;1;0;"57.443,30";"57.443,30";COMUNE DI PEDEMONTE; ;"POR FESR 2007 - 2013. ASSE 4, LINEA DI INTERVENTO 4.3. AZIONE 4.3.1 CICLOPISTA DELL'ASTICO, TESINA E BACCHIGLIONE. TRATTA VELO D'ASTICO - LASTEBASSE. DECRETO REGIONALE RIPARTO MAGGIORI SOMME LIQUIDATE. DELIBERAZIONE DI GIUNTA N. 76 DEL 28.12.2016. IM";17-05-2017;24117;0;115;2;Spese in conto capitale;5;Altre spese in conto capitale;99;Altre spese in conto capitale n.a.c.;99;Altre spese in conto capitale n.a.c.;999;Altre spese in conto capitale n.a.c.;17-05-2017;
224;1;0;"1.836,90";"1.836,90";OMESSO NOMINATIVO NEL RISPETTO DELLA NORMATIVA SULLA PROTEZIONE DATI PERSONALI; ;DELIBERA DI GIUNTA N. 44/2017 - DOMANDA ASSEGNO NUCLEO FAMILIARE SIG. S.I. PRESA D'ATTO DISSERVIZIO INFORMATICO;18-05-2017;15119;0;106;1;Spese correnti;3;Acquisto di beni e servizi;2;Acquisto di servizi;18;Servizi sanitari;999;Altri acquisti di servizi sanitari n.a.c.;18-05-2017;
225;1;0;"150.476,12";"150.476,12";COMUNE DI VALDASTICO; ;"POR FESR 2007 - 2013. ASSE 4, LINEA DI INTERVENTO 4.3. AZIONE 4.3.1 CICLOPISTA DELL'ASTICO, TESINA E BACCHIGLIONE. TRATTA VELO D'ASTICO - LASTEBASSE. DECRETO REGIONALE RIPARTO MAGGIORI SOMME LIQUIDATE. DELIBERAZIONE DI GIUNTA N. 76 DEL 28.12.2016. IM";19-05-2017;24117;0;115;2;Spese in conto capitale;5;Altre spese in conto capitale;99;Altre spese in conto capitale n.a.c.;99;Altre spese in conto capitale n.a.c.;999;Altre spese in conto capitale n.a.c.;19-05-2017;
226;1;0;"5,15";"435,79";TELECOM ITALIA SPA;Z971AE7849;SALDO Fatt.n. 8E00136124  del 06/02/2017 2BIM 2017 - 016113021870.;13-06-2017;11205;0;65;1;Spese correnti;3;Acquisto di beni e servizi;2;Acquisto di servizi;5;Utenze e canoni;1;Telefonia fissa;13-06-2017;
226;2;0;"77,15";"435,79";TELECOM ITALIA SPA;Z1A08E39DA;SALDO Fatt.n. 8E00136754  del 06/02/2017 2BIM 2017 - 0445741797.;13-06-2017;11205;0;65;1;Spese correnti;3;Acquisto di beni e servizi;2;Acquisto di servizi;5;Utenze e canoni;1;Telefonia fissa;13-06-2017;
226;3;0;"83,96";"435,79";TELECOM ITALIA SPA;Z971AE7849;SALDO Fatt.n. 8E00133272  del 06/02/2017 2BIM 2017 - 044513345997.;13-06-2017;11205;0;65;1;Spese correnti;3;Acquisto di beni e servizi;2;Acquisto di servizi;5;Utenze e canoni;1;Telefonia fissa;13-06-2017;
226;4;0;"134,19";"435,79";TELECOM ITALIA SPA;Z1A08E39DA;SALDO Fatt.n. 8E00139027  del 06/02/2017 2BIM 2017 - 0445742373.;13-06-2017;11205;0;65;1;Spese correnti;3;Acquisto di beni e servizi;2;Acquisto di servizi;5;Utenze e canoni;1;Telefonia fissa;13-06-2017;
226;5;0;"135,34";"435,79";TELECOM ITALIA SPA;Z1A08E39DA;SALDO Fatt.n. 8E00133678  del 06/02/2017 2BIM 2017 - 0445740529.;13-06-2017;11205;0;65;1;Spese correnti;3;Acquisto di beni e servizi;2;Acquisto di servizi;5;Utenze e canoni;1;Telefonia fissa;13-06-2017;
227;1;0;"747,99";"747,99";Soenergy S.r.l.;ZE91780D56;SALDO Fatt.n. 171061542  del 10/04/2017 FORNITURA GAS PERIODO 28/02/2017 - 31/03/2017.;13-06-2017;11205;0;25;1;Spese correnti;3;Acquisto di beni e servizi;2;Acquisto di servizi;5;Utenze e canoni;6;Gas;13-06-2017;
228;1;0;"80,67";"80,67";ENI ADFIN S.P.A.;Z731E3A828;SALDO Fatt.n. 29146149  del 28/02/2017 CARBURANTI MESE DI FEBBRAIO ANNO 2017.;13-06-2017;11265;0;26;1;Spese correnti;3;Acquisto di beni e servizi;1;Acquisto di beni;2;Altri beni di consumo;2;"Carburanti, combustibili e lubrificanti";13-06-2017;
229;1;0;"36,49";"36,49";ENI ADFIN S.P.A.;Z321E85D48;ACCONTO Fatt.n. 29049286  del 31/01/2017 ACQUISTO CARBURANTI MESE DI GENNAIO 2017.;13-06-2017;11395;0;45;1;Spese correnti;3;Acquisto di beni e servizi;1;Acquisto di beni;2;Altri beni di consumo;2;"Carburanti, combustibili e lubrificanti";13-06-2017;
230;1;0;"79,50";"79,50";ENI ADFIN S.P.A.;Z731E3A828;SALDO Fatt.n. 29049286  del 31/01/2017 ACQUISTO CARBURANTI MESE DI GENNAIO 2017.;13-06-2017;11265;0;26;1;Spese correnti;3;Acquisto di beni e servizi;1;Acquisto di beni;2;Altri beni di consumo;2;"Carburanti, combustibili e lubrificanti";13-06-2017;
231;1;0;"76,81";"4.546,22";OMESSO NOMINATIVO NEL RISPETTO DELLA NORMATIVA SULLA PROTEZIONE DATI PERSONALI; ;PREMI CONSERVAZIONE AREE PRATIVE 2017.;13-06-2017;26125;0;39;2;Spese in conto capitale;3;Contributi agli investimenti;3;Contributi agli investimenti a Imprese;3;Contributi agli investimenti a altre Imprese;999;Contributi agli investimenti a altre Imprese;13-06-2017;
231;2;0;"150,87";"4.546,22";OMESSO NOMINATIVO NEL RISPETTO DELLA NORMATIVA SULLA PROTEZIONE DATI PERSONALI; ;PREMI CONSERVAZIONE AREE PRATIVE 2017.;13-06-2017;26125;0;39;2;Spese in conto capitale;3;Contributi agli investimenti;3;Contributi agli investimenti a Imprese;3;Contributi agli investimenti a altre Imprese;999;Contributi agli investimenti a altre Imprese;13-06-2017;
231;3;0;"70,95";"4.546,22";OMESSO NOMINATIVO NEL RISPETTO DELLA NORMATIVA SULLA PROTEZIONE DATI PERSONALI; ;PREMI CONSERVAZIONE AREE PRATIVE 2017.;13-06-2017;26125;0;39;2;Spese in conto capitale;3;Contributi agli investimenti;3;Contributi agli investimenti a Imprese;3;Contributi agli investimenti a altre Imprese;999;Contributi agli investimenti a altre Imprese;13-06-2017;
231;4;0;"1.315,42";"4.546,22";OMESSO NOMINATIVO NEL RISPETTO DELLA NORMATIVA SULLA PROTEZIONE DATI PERSONALI; ;PREMI CONSERVAZIONE AREE PRATIVE 2017.;13-06-2017;26125;0;39;2;Spese in conto capitale;3;Contributi agli investimenti;3;Contributi agli investimenti a Imprese;3;Contributi agli investimenti a altre Imprese;999;Contributi agli investimenti a altre Imprese;13-06-2017;
231;5;0;"68,50";"4.546,22";OMESSO NOMINATIVO NEL RISPETTO DELLA NORMATIVA SULLA PROTEZIONE DATI PERSONALI; ;PREMI CONSERVAZIONE AREE PRATIVE 2017.;13-06-2017;26125;0;39;2;Spese in conto capitale;3;Contributi agli investimenti;3;Contributi agli investimenti a Imprese;3;Contributi agli investimenti a altre Imprese;999;Contributi agli investimenti a altre Imprese;13-06-2017;
231;6;0;"164,35";"4.546,22";OMESSO NOMINATIVO NEL RISPETTO DELLA NORMATIVA SULLA PROTEZIONE DATI PERSONALI; ;PREMI CONSERVAZIONE AREE PRATIVE 2017.;13-06-2017;26125;0;39;2;Spese in conto capitale;3;Contributi agli investimenti;3;Contributi agli investimenti a Imprese;3;Contributi agli investimenti a altre Imprese;999;Contributi agli investimenti a altre Imprese;13-06-2017;
231;7;0;"87,54";"4.546,22";OMESSO NOMINATIVO NEL RISPETTO DELLA NORMATIVA SULLA PROTEZIONE DATI PERSONALI; ;PREMI CONSERVAZIONE AREE PRATIVE 2017.;13-06-2017;26125;0;39;2;Spese in conto capitale;3;Contributi agli investimenti;3;Contributi agli investimenti a Imprese;3;Contributi agli investimenti a altre Imprese;999;Contributi agli investimenti a altre Imprese;13-06-2017;
231;8;0;"357,02";"4.546,22";OMESSO NOMINATIVO NEL RISPETTO DELLA NORMATIVA SULLA PROTEZIONE DATI PERSONALI; ;PREMI CONSERVAZIONE AREE PRATIVE 2017.;13-06-2017;26125;0;39;2;Spese in conto capitale;3;Contributi agli investimenti;3;Contributi agli investimenti a Imprese;3;Contributi agli investimenti a altre Imprese;999;Contributi agli investimenti a altre Imprese;13-06-2017;
231;9;0;"36,17";"4.546,22";OMESSO NOMINATIVO NEL RISPETTO DELLA NORMATIVA SULLA PROTEZIONE DATI PERSONALI; ;PREMI CONSERVAZIONE AREE PRATIVE 2017.;13-06-2017;26125;0;39;2;Spese in conto capitale;3;Contributi agli investimenti;3;Contributi agli investimenti a Imprese;3;Contributi agli investimenti a altre Imprese;999;Contributi agli investimenti a altre Imprese;13-06-2017;
231;10;0;"411,91";"4.546,22";OMESSO NOMINATIVO NEL RISPETTO DELLA NORMATIVA SULLA PROTEZIONE DATI PERSONALI; ;PREMI CONSERVAZIONE AREE PRATIVE 2017.;13-06-2017;26125;0;39;2;Spese in conto capitale;3;Contributi agli investimenti;3;Contributi agli investimenti a Imprese;3;Contributi agli investimenti a altre Imprese;999;Contributi agli investimenti a altre Imprese;13-06-2017;
231;11;0;"94,15";"4.546,22";OMESSO NOMINATIVO NEL RISPETTO DELLA NORMATIVA SULLA PROTEZIONE DATI PERSONALI; ;PREMI CONSERVAZIONE AREE PRATIVE 2017.;13-06-2017;26125;0;39;2;Spese in conto capitale;3;Contributi agli investimenti;3;Contributi agli investimenti a Imprese;3;Contributi agli investimenti a altre Imprese;999;Contributi agli investimenti a altre Imprese;13-06-2017;
231;12;0;"62,69";"4.546,22";OMESSO NOMINATIVO NEL RISPETTO DELLA NORMATIVA SULLA PROTEZIONE DATI PERSONALI; ;PREMI CONSERVAZIONE AREE PRATIVE 2017.;13-06-2017;26125;0;39;2;Spese in conto capitale;3;Contributi agli investimenti;3;Contributi agli investimenti a Imprese;3;Contributi agli investimenti a altre Imprese;999;Contributi agli investimenti a altre Imprese;13-06-2017;
231;13;0;"465,76";"4.546,22";OMESSO NOMINATIVO NEL RISPETTO DELLA NORMATIVA SULLA PROTEZIONE DATI PERSONALI; ;PREMI CONSERVAZIONE AREE PRATIVE 2017.;13-06-2017;26125;0;39;2;Spese in conto capitale;3;Contributi agli investimenti;3;Contributi agli investimenti a Imprese;3;Contributi agli investimenti a altre Imprese;999;Contributi agli investimenti a altre Imprese;13-06-2017;
231;14;0;"79,34";"4.546,22";OMESSO NOMINATIVO NEL RISPETTO DELLA NORMATIVA SULLA PROTEZIONE DATI PERSONALI; ;PREMI CONSERVAZIONE AREE PRATIVE 2017.;13-06-2017;26125;0;39;2;Spese in conto capitale;3;Contributi agli investimenti;3;Contributi agli investimenti a Imprese;3;Contributi agli investimenti a altre Imprese;999;Contributi agli investimenti a altre Imprese;13-06-2017;
231;15;0;"206,33";"4.546,22";OMESSO NOMINATIVO NEL RISPETTO DELLA NORMATIVA SULLA PROTEZIONE DATI PERSONALI; ;PREMI CONSERVAZIONE AREE PRATIVE 2017.;13-06-2017;26125;0;39;2;Spese in conto capitale;3;Contributi agli investimenti;3;Contributi agli investimenti a Imprese;3;Contributi agli investimenti a altre Imprese;999;Contributi agli investimenti a altre Imprese;13-06-2017;
231;16;0;"106,85";"4.546,22";OMESSO NOMINATIVO NEL RISPETTO DELLA NORMATIVA SULLA PROTEZIONE DATI PERSONALI; ;PREMI CONSERVAZIONE AREE PRATIVE 2017.;13-06-2017;26125;0;39;2;Spese in conto capitale;3;Contributi agli investimenti;3;Contributi agli investimenti a Imprese;3;Contributi agli investimenti a altre Imprese;999;Contributi agli investimenti a altre Imprese;13-06-2017;
231;17;0;"61,74";"4.546,22";OMESSO NOMINATIVO NEL RISPETTO DELLA NORMATIVA SULLA PROTEZIONE DATI PERSONALI; ;PREMI CONSERVAZIONE AREE PRATIVE 2017.;13-06-2017;26125;0;39;2;Spese in conto capitale;3;Contributi agli investimenti;3;Contributi agli investimenti a Imprese;3;Contributi agli investimenti a altre Imprese;999;Contributi agli investimenti a altre Imprese;13-06-2017;
231;18;0;"627,18";"4.546,22";OMESSO NOMINATIVO NEL RISPETTO DELLA NORMATIVA SULLA PROTEZIONE DATI PERSONALI; ;PREMI CONSERVAZIONE AREE PRATIVE 2017.;13-06-2017;26125;0;39;2;Spese in conto capitale;3;Contributi agli investimenti;3;Contributi agli investimenti a Imprese;3;Contributi agli investimenti a altre Imprese;999;Contributi agli investimenti a altre Imprese;13-06-2017;
231;19;0;"102,64";"4.546,22";OMESSO NOMINATIVO NEL RISPETTO DELLA NORMATIVA SULLA PROTEZIONE DATI PERSONALI; ;PREMI CONSERVAZIONE AREE PRATIVE 2017.;13-06-2017;26125;0;39;2;Spese in conto capitale;3;Contributi agli investimenti;3;Contributi agli investimenti a Imprese;3;Contributi agli investimenti a altre Imprese;999;Contributi agli investimenti a altre Imprese;13-06-2017;
232;1;0;"116,24";"4.773,02";OMESSO NOMINATIVO NEL RISPETTO DELLA NORMATIVA SULLA PROTEZIONE DATI PERSONALI; ;PREMI CONSERVAZIONE AREE PRATIVE 2017.;13-06-2017;26125;0;39;2;Spese in conto capitale;3;Contributi agli investimenti;3;Contributi agli investimenti a Imprese;3;Contributi agli investimenti a altre Imprese;999;Contributi agli investimenti a altre Imprese;13-06-2017;
232;2;0;"381,99";"4.773,02";OMESSO NOMINATIVO NEL RISPETTO DELLA NORMATIVA SULLA PROTEZIONE DATI PERSONALI; ;PREMI CONSERVAZIONE AREE PRATIVE 2017.;13-06-2017;26125;0;39;2;Spese in conto capitale;3;Contributi agli investimenti;3;Contributi agli investimenti a Imprese;3;Contributi agli investimenti a altre Imprese;999;Contributi agli investimenti a altre Imprese;13-06-2017;
232;3;0;"255,67";"4.773,02";OMESSO NOMINATIVO NEL RISPETTO DELLA NORMATIVA SULLA PROTEZIONE DATI PERSONALI; ;PREMI CONSERVAZIONE AREE PRATIVE 2017.;13-06-2017;26125;0;39;2;Spese in conto capitale;3;Contributi agli investimenti;3;Contributi agli investimenti a Imprese;3;Contributi agli investimenti a altre Imprese;999;Contributi agli investimenti a altre Imprese;13-06-2017;
232;4;0;"283,33";"4.773,02";OMESSO NOMINATIVO NEL RISPETTO DELLA NORMATIVA SULLA PROTEZIONE DATI PERSONALI; ;PREMI CONSERVAZIONE AREE PRATIVE 2017.;13-06-2017;26125;0;39;2;Spese in conto capitale;3;Contributi agli investimenti;3;Contributi agli investimenti a Imprese;3;Contributi agli investimenti a altre Imprese;999;Contributi agli investimenti a altre Imprese;13-06-2017;
232;5;0;"81,58";"4.773,02";OMESSO NOMINATIVO NEL RISPETTO DELLA NORMATIVA SULLA PROTEZIONE DATI PERSONALI; ;PREMI CONSERVAZIONE AREE PRATIVE 2017.;13-06-2017;26125;0;39;2;Spese in conto capitale;3;Contributi agli investimenti;3;Contributi agli investimenti a Imprese;3;Contributi agli investimenti a altre Imprese;999;Contributi agli investimenti a altre Imprese;13-06-2017;
232;6;0;"28,39";"4.773,02";OMESSO NOMINATIVO NEL RISPETTO DELLA NORMATIVA SULLA PROTEZIONE DATI PERSONALI; ;PREMI CONSERVAZIONE AREE PRATIVE 2017.;13-06-2017;26125;0;39;2;Spese in conto capitale;3;Contributi agli investimenti;3;Contributi agli investimenti a Imprese;3;Contributi agli investimenti a altre Imprese;999;Contributi agli investimenti a altre Imprese;13-06-2017;
232;7;0;"895,99";"4.773,02";OMESSO NOMINATIVO NEL RISPETTO DELLA NORMATIVA SULLA PROTEZIONE DATI PERSONALI; ;PREMI CONSERVAZIONE AREE PRATIVE 2017.;13-06-2017;26125;0;39;2;Spese in conto capitale;3;Contributi agli investimenti;3;Contributi agli investimenti a Imprese;3;Contributi agli investimenti a altre Imprese;999;Contributi agli investimenti a altre Imprese;13-06-2017;
232;8;0;"360,32";"4.773,02";OMESSO NOMINATIVO NEL RISPETTO DELLA NORMATIVA SULLA PROTEZIONE DATI PERSONALI; ;PREMI CONSERVAZIONE AREE PRATIVE 2017.;13-06-2017;26125;0;39;2;Spese in conto capitale;3;Contributi agli investimenti;3;Contributi agli investimenti a Imprese;3;Contributi agli investimenti a altre Imprese;999;Contributi agli investimenti a altre Imprese;13-06-2017;
232;9;0;"25,38";"4.773,02";OMESSO NOMINATIVO NEL RISPETTO DELLA NORMATIVA SULLA PROTEZIONE DATI PERSONALI; ;PREMI CONSERVAZIONE AREE PRATIVE 2017.;13-06-2017;26125;0;39;2;Spese in conto capitale;3;Contributi agli investimenti;3;Contributi agli investimenti a Imprese;3;Contributi agli investimenti a altre Imprese;999;Contributi agli investimenti a altre Imprese;13-06-2017;
232;10;0;"227,45";"4.773,02";OMESSO NOMINATIVO NEL RISPETTO DELLA NORMATIVA SULLA PROTEZIONE DATI PERSONALI; ;PREMI CONSERVAZIONE AREE PRATIVE 2017.;13-06-2017;26125;0;39;2;Spese in conto capitale;3;Contributi agli investimenti;3;Contributi agli investimenti a Imprese;3;Contributi agli investimenti a altre Imprese;999;Contributi agli investimenti a altre Imprese;13-06-2017;
232;11;0;"355,82";"4.773,02";OMESSO NOMINATIVO NEL RISPETTO DELLA NORMATIVA SULLA PROTEZIONE DATI PERSONALI; ;PREMI CONSERVAZIONE AREE PRATIVE 2017.;13-06-2017;26125;0;39;2;Spese in conto capitale;3;Contributi agli investimenti;3;Contributi agli investimenti a Imprese;3;Contributi agli investimenti a altre Imprese;999;Contributi agli investimenti a altre Imprese;13-06-2017;
232;12;0;"188,99";"4.773,02";OMESSO NOMINATIVO NEL RISPETTO DELLA NORMATIVA SULLA PROTEZIONE DATI PERSONALI; ;PREMI CONSERVAZIONE AREE PRATIVE 2017.;13-06-2017;26125;0;39;2;Spese in conto capitale;3;Contributi agli investimenti;3;Contributi agli investimenti a Imprese;3;Contributi agli investimenti a altre Imprese;999;Contributi agli investimenti a altre Imprese;13-06-2017;
232;13;0;"240,89";"4.773,02";OMESSO NOMINATIVO NEL RISPETTO DELLA NORMATIVA SULLA PROTEZIONE DATI PERSONALI; ;PREMI CONSERVAZIONE AREE PRATIVE 2017.;13-06-2017;26125;0;39;2;Spese in conto capitale;3;Contributi agli investimenti;3;Contributi agli investimenti a Imprese;3;Contributi agli investimenti a altre Imprese;999;Contributi agli investimenti a altre Imprese;13-06-2017;
232;14;0;"76,53";"4.773,02";OMESSO NOMINATIVO NEL RISPETTO DELLA NORMATIVA SULLA PROTEZIONE DATI PERSONALI; ;PREMI CONSERVAZIONE AREE PRATIVE 2017.;13-06-2017;26125;0;39;2;Spese in conto capitale;3;Contributi agli investimenti;3;Contributi agli investimenti a Imprese;3;Contributi agli investimenti a altre Imprese;999;Contributi agli investimenti a altre Imprese;13-06-2017;
232;15;0;"187,00";"4.773,02";OMESSO NOMINATIVO NEL RISPETTO DELLA NORMATIVA SULLA PROTEZIONE DATI PERSONALI; ;PREMI CONSERVAZIONE AREE PRATIVE 2017.;13-06-2017;26125;0;39;2;Spese in conto capitale;3;Contributi agli investimenti;3;Contributi agli investimenti a Imprese;3;Contributi agli investimenti a altre Imprese;999;Contributi agli investimenti a altre Imprese;13-06-2017;
232;16;0;"306,23";"4.773,02";OMESSO NOMINATIVO NEL RISPETTO DELLA NORMATIVA SULLA PROTEZIONE DATI PERSONALI; ;PREMI CONSERVAZIONE AREE PRATIVE 2017.;13-06-2017;26125;0;39;2;Spese in conto capitale;3;Contributi agli investimenti;3;Contributi agli investimenti a Imprese;3;Contributi agli investimenti a altre Imprese;999;Contributi agli investimenti a altre Imprese;13-06-2017;
232;17;0;"260,40";"4.773,02";OMESSO NOMINATIVO NEL RISPETTO DELLA NORMATIVA SULLA PROTEZIONE DATI PERSONALI; ;PREMI CONSERVAZIONE AREE PRATIVE 2017.;13-06-2017;26125;0;39;2;Spese in conto capitale;3;Contributi agli investimenti;3;Contributi agli investimenti a Imprese;3;Contributi agli investimenti a altre Imprese;999;Contributi agli investimenti a altre Imprese;13-06-2017;
232;18;0;"151,89";"4.773,02";OMESSO NOMINATIVO NEL RISPETTO DELLA NORMATIVA SULLA PROTEZIONE DATI PERSONALI; ;PREMI CONSERVAZIONE AREE PRATIVE 2017.;13-06-2017;26125;0;39;2;Spese in conto capitale;3;Contributi agli investimenti;3;Contributi agli investimenti a Imprese;3;Contributi agli investimenti a altre Imprese;999;Contributi agli investimenti a altre Imprese;13-06-2017;
232;19;0;"260,95";"4.773,02";OMESSO NOMINATIVO NEL RISPETTO DELLA NORMATIVA SULLA PROTEZIONE DATI PERSONALI; ;PREMI CONSERVAZIONE AREE PRATIVE 2017.;13-06-2017;26125;0;39;2;Spese in conto capitale;3;Contributi agli investimenti;3;Contributi agli investimenti a Imprese;3;Contributi agli investimenti a altre Imprese;999;Contributi agli investimenti a altre Imprese;13-06-2017;
232;20;0;"87,98";"4.773,02";OMESSO NOMINATIVO NEL RISPETTO DELLA NORMATIVA SULLA PROTEZIONE DATI PERSONALI; ;PREMI CONSERVAZIONE AREE PRATIVE 2017.;13-06-2017;26125;0;39;2;Spese in conto capitale;3;Contributi agli investimenti;3;Contributi agli investimenti a Imprese;3;Contributi agli investimenti a altre Imprese;999;Contributi agli investimenti a altre Imprese;13-06-2017;
233;1;0;"108,97";"108,97";TECNOCOPY S.R.L.;ZA30E29C30;SALDO Fatt.n. 66/PA  del 30/04/2017 FOTOCOPIATRICE PERIODO 01/03/2017-30/04/2017.;15-06-2017;11390;0;15;1;Spese correnti;3;Acquisto di beni e servizi;2;Acquisto di servizi;99;Altri servizi;999;Altri servizi diversi n.a.c.;15-06-2017;
264;1;0;"1.207,80";"1.207,80";PERFORMARE SPA;Z4C1B4666D;SALDO Fatt.n. 3000016/3  del 24/02/2017;28-06-2017;11211;0;76;1;Spese correnti;3;Acquisto di beni e servizi;2;Acquisto di servizi;99;Altri servizi;999;Altri servizi diversi n.a.c.;28-06-2017;
265;1;0;"771,20";"771,20";ASSITECA SPA;Z131A738F5;POLIZZA INFORTUNI ANNO 2017 - REALE MUTUA - IMPEGNO DI SPESA.;29-06-2017;11210;0;69;1;Spese correnti;10;Altre spese correnti;4;Premi di assicurazione;99;Altri premi di assicurazione n.a.c.;999;Altri premi di assicurazione n.a.c.;29-06-2017;
266;1;0;"1.135,00";"1.135,00";ASSITECA SPA;Z961A738F8;POLIZZA KASKO ANNO 2017. IMPEGNO DI SPESA;29-06-2017;11265;0;70;1;Spese correnti;3;Acquisto di beni e servizi;1;Acquisto di beni;2;Altri beni di consumo;999;Altri beni e materiali di consumo n.a.c.;29-06-2017;
267;1;0;"1.300,00";"1.300,00";ASSITECA SPA;Z301A738EE;POLIZZA ALL RISKS ANNO 2017 ITAS N. M11340701. IMPEGNO DI SPESA.;29-06-2017;11210;0;68;1;Spese correnti;10;Altre spese correnti;4;Premi di assicurazione;99;Altri premi di assicurazione n.a.c.;999;Altri premi di assicurazione n.a.c.;29-06-2017;
268;1;0;"1.499,00";"1.499,00";ASSITECA SPA;Z641F08182;POLIZZA RCA LIBRO MATRICOLA UNIPOLSAI ANNO 2017.;29-06-2017;11210;0;67;1;Spese correnti;10;Altre spese correnti;4;Premi di assicurazione;99;Altri premi di assicurazione n.a.c.;999;Altri premi di assicurazione n.a.c.;29-06-2017;
269;1;0;"590,26";"590,26";ASSITECA SPA;ZC91A738FD;POLIZZA TUTELA LEGALE ANNO 2017. IMPEGNO DI SPESA.;29-06-2017;11210;0;71;1;Spese correnti;10;Altre spese correnti;4;Premi di assicurazione;99;Altri premi di assicurazione n.a.c.;999;Altri premi di assicurazione n.a.c.;29-06-2017;
270;1;0;"1.017,74";"1.017,74";ASSITECA SPA;ZC91A738FD;POLIZZA TUTELA LEGALE ANNO 2017. IMPEGNO DI SPESA.;29-06-2017;11330;0;72;1;Spese correnti;3;Acquisto di beni e servizi;2;Acquisto di servizi;99;Altri servizi;999;Altri servizi diversi n.a.c.;29-06-2017;
271;1;0;"3.000,00";"3.000,00";ASSITECA SPA;Z391F07EBE;COPERTURA POLIZZA RCTO UNIPOL SAI ANNO 2017.;29-06-2017;11210;0;66;1;Spese correnti;10;Altre spese correnti;4;Premi di assicurazione;99;Altri premi di assicurazione n.a.c.;999;Altri premi di assicurazione n.a.c.;29-06-2017;
272;1;0;"244,00";"244,00";MAGGIOLI SPA;Z181F06047;SALDO Fatt.n. 0002118958  del 19/05/2017 LA GAZZETTA DEGLI ENTI LOCALI - TRIENNALE - ANNUALITA' 3.;29-06-2017;11190;0;62;1;Spese correnti;3;Acquisto di beni e servizi;1;Acquisto di beni;2;Altri beni di consumo;14;Stampati specialistici;29-06-2017;
273;1;0;"10.207,78";"10.207,78";LA LOCOMOTIVA COOPERATIVA SOCIALE ONLUS;6257521DAC;SALDO Fatt.n. P/160  del 23/05/2017 SERVIZIO ASSISTENZA DOMICILIARE MESE DI APRILE ANNO 2017.;29-06-2017;15115;0;60;1;Spese correnti;3;Acquisto di beni e servizi;2;Acquisto di servizi;18;Servizi sanitari;999;Altri acquisti di servizi sanitari n.a.c.;29-06-2017;
274;1;0;"3.375,75";"3.375,75";LA LOCOMOTIVA COOPERATIVA SOCIALE ONLUS;6257521DAC;SALDO Fatt.n. P/133  del 05/05/2017 SEGRETARIATO SOCIALE MESE DI APRILE 2017.;29-06-2017;11330;0;61;1;Spese correnti;3;Acquisto di beni e servizi;2;Acquisto di servizi;99;Altri servizi;999;Altri servizi diversi n.a.c.;29-06-2017;
275;1;0;"2.080,44";"2.080,44";LA LOCOMOTIVA COOPERATIVA SOCIALE ONLUS;6257521DAC;SALDO Fatt.n. P/161  del 23/05/2017 SERVIZIO DI CONSEGNA PASTI MESE DI APRILE ANNO 2017.;29-06-2017;15125;0;30;1;Spese correnti;3;Acquisto di beni e servizi;2;Acquisto di servizi;14;Servizi di ristorazione;999;Altri servizi di ristorazione;29-06-2017;
276;1;0;"1.219,75";"1.219,75";COMUNE DI ARSIERO; ;SALDO Fatt.n. 16/B/3  del 28/04/2017 FORNITURA PASTI CALDI ANZIANI MESE APRILE 2017;29-06-2017;15125;0;63;1;Spese correnti;3;Acquisto di beni e servizi;2;Acquisto di servizi;14;Servizi di ristorazione;999;Altri servizi di ristorazione;29-06-2017;
277;1;0;"644,10";"1.777,50";SEZIONE CAI DI DUEVILLE; ;"L.R. 11/2013, ART. 48 BIS. FINANZIAMENTO REGIONALE ASSEGNATO ALL'UNIONE MONTANA ALTO ASTICO PER LA MANUTENZIONE 2016 DEI SENTIERI ALPINI. IMPEGNO DI SPESA E LIQUIDAZIONE A FAVORE DELLE SEZIONI CAI ASSEGNATARIE.";29-06-2017;23149;0;19;2;Spese in conto capitale;5;Altre spese in conto capitale;99;Altre spese in conto capitale n.a.c.;99;Altre spese in conto capitale n.a.c.;999;Altre spese in conto capitale n.a.c.;29-06-2017;
277;2;0;"865,66";"1.777,50";SEZIONE CAI DI MALO; ;"L.R. 11/2013, ART. 48 BIS. FINANZIAMENTO REGIONALE ASSEGNATO ALL'UNIONE MONTANA ALTO ASTICO PER LA MANUTENZIONE 2016 DEI SENTIERI ALPINI. IMPEGNO DI SPESA E LIQUIDAZIONE A FAVORE DELLE SEZIONI CAI ASSEGNATARIE.";29-06-2017;23149;0;19;2;Spese in conto capitale;5;Altre spese in conto capitale;99;Altre spese in conto capitale n.a.c.;99;Altre spese in conto capitale n.a.c.;999;Altre spese in conto capitale n.a.c.;29-06-2017;
277;3;0;"267,74";"1.777,50";SEZIONE CAI DI VICENZA; ;"L.R. 11/2013, ART. 48 BIS. FINANZIAMENTO REGIONALE ASSEGNATO ALL'UNIONE MONTANA ALTO ASTICO PER LA MANUTENZIONE 2016 DEI SENTIERI ALPINI. IMPEGNO DI SPESA E LIQUIDAZIONE A FAVORE DELLE SEZIONI CAI ASSEGNATARIE.";29-06-2017;23149;0;19;2;Spese in conto capitale;5;Altre spese in conto capitale;99;Altre spese in conto capitale n.a.c.;99;Altre spese in conto capitale n.a.c.;999;Altre spese in conto capitale n.a.c.;29-06-2017;
278;1;0;"766,03";"68.665,33";AZIENDA ULSS N.7 Pedemontana; ;ACCONTO Fatt.n. 006/247  del 20/04/2017 ACCONTO Q.ASSOCIATIVE 2017 LAGHI.;29-06-2017;11345;0;73;1;Spese correnti;3;Acquisto di beni e servizi;2;Acquisto di servizi;18;Servizi sanitari;999;Altri acquisti di servizi sanitari n.a.c.;29-06-2017;
278;2;0;"1.184,40";"68.665,33";AZIENDA ULSS N.7 Pedemontana; ;ACCONTO Fatt.n. 006/248  del 20/04/2017 ACCONTO Q.ASSOCIATIVE 2017 LASTEBASSE.;29-06-2017;11345;0;73;1;Spese correnti;3;Acquisto di beni e servizi;2;Acquisto di servizi;18;Servizi sanitari;999;Altri acquisti di servizi sanitari n.a.c.;29-06-2017;
278;3;0;"3.081,78";"68.665,33";AZIENDA ULSS N.7 Pedemontana; ;ACCONTO Fatt.n. 006/250  del 20/04/2017 ACCONTO Q.ASSOCIATIVE 2017 TONEZZA DEL CIMONE.;29-06-2017;11345;0;73;1;Spese correnti;3;Acquisto di beni e servizi;2;Acquisto di servizi;18;Servizi sanitari;999;Altri acquisti di servizi sanitari n.a.c.;29-06-2017;
278;4;0;"4.425,27";"68.665,33";AZIENDA ULSS N.7 Pedemontana; ;ACCONTO Fatt.n. 006/249  del 20/04/2017 ACCONTO Q.ASSOCIATIVE 2017 PEDEMONTE.;29-06-2017;11345;0;73;1;Spese correnti;3;Acquisto di beni e servizi;2;Acquisto di servizi;18;Servizi sanitari;999;Altri acquisti di servizi sanitari n.a.c.;29-06-2017;
278;5;0;"7.542,40";"68.665,33";AZIENDA ULSS N.7 Pedemontana; ;ACCONTO Fatt.n. 006/251  del 20/04/2017 ACCONTO Q.ASSOCIATIVE 2017 VALDASTICO.;29-06-2017;11345;0;73;1;Spese correnti;3;Acquisto di beni e servizi;2;Acquisto di servizi;18;Servizi sanitari;999;Altri acquisti di servizi sanitari n.a.c.;29-06-2017;
278;6;0;"14.177,36";"68.665,33";AZIENDA ULSS N.7 Pedemontana; ;ACCONTO Fatt.n. 006/252  del 20/04/2017 ACCONTO Q.ASSOCIATIVE 2017 VELO D'ASTICO.;29-06-2017;11345;0;73;1;Spese correnti;3;Acquisto di beni e servizi;2;Acquisto di servizi;18;Servizi sanitari;999;Altri acquisti di servizi sanitari n.a.c.;29-06-2017;
278;7;0;"18.449,42";"68.665,33";AZIENDA ULSS N.7 Pedemontana; ;ACCONTO Fatt.n. 006/245  del 20/04/2017 ACCONTO Q.ASSOCIATIVE 2017 COMUNE DI ARSIERO.;29-06-2017;11345;0;73;1;Spese correnti;3;Acquisto di beni e servizi;2;Acquisto di servizi;18;Servizi sanitari;999;Altri acquisti di servizi sanitari n.a.c.;29-06-2017;
278;8;0;"19.038,67";"68.665,33";AZIENDA ULSS N.7 Pedemontana; ;ACCONTO Fatt.n. 006/246  del 20/04/2017 ACCONTO Q.ASSOCIATIVE 2017 COGOLLO D.CENGIO.;29-06-2017;11345;0;73;1;Spese correnti;3;Acquisto di beni e servizi;2;Acquisto di servizi;18;Servizi sanitari;999;Altri acquisti di servizi sanitari n.a.c.;29-06-2017;
